{"text_format":"1","workbook":"xlsx","n_sheets":20,"sheets":["identifikacija_obrazca","navodila","stranka","pooblasc","1_zb_center1","1_zb_center2","1_zb_center3","2_umestitev_zc","3_nenevar_in_nevar_odp","4_komunalni_odp","4_OVD","obvezne_priloge","5_druga_dokazila","up_taksa","sifrant_odpadkov","sifrant_kom_odpadkov","sifrant_obcine","sifrant_prilog","sifrant_ostalo","prevent_share"],"not_rendered":{"charts":0,"images":1,"macros":1,"external_links":0,"defined_names":32,"comments":2,"pivot_tables":0},"unopened":[],"bounds":{"document_bytes":16777216,"sheet_cells":100000,"rows_first":2000,"rows_last":500,"rows_between":2000,"halvings":0,"cell_chars":16384,"cell_head_chars":4096},"cells_cut":0,"cells_raw":0,"read":"whole","date_system":"1900"}

{"sheet":"identifikacija_obrazca","index":0,"n_rows":59,"n_cols":4,"rows_kept":59,"cut":false,"hidden":true,"merged":[[0,0,0,14],[5,1,5,14],[8,3,8,18],[9,3,9,18],[10,3,10,18],[16,3,16,18],[17,3,17,18],[19,3,19,18],[20,3,20,18],[11,3,11,18],[12,3,12,18],[13,3,13,18],[14,3,14,18],[15,3,15,18],[21,3,21,18],[22,3,22,18],[25,3,25,18],[26,3,26,18],[23,3,23,18],[24,3,24,18],[27,3,27,18],[28,3,28,18],[29,3,29,18],[30,3,30,18],[31,3,31,18],[32,3,32,18],[33,3,33,18],[34,3,34,18],[35,3,35,18],[36,3,36,18],[37,3,37,18],[38,3,38,18],[39,3,39,18],[40,3,40,18],[41,3,41,18],[42,3,42,18],[43,3,43,18],[44,3,44,18],[45,3,45,18],[46,3,46,18],[47,3,47,18],[48,3,48,18],[49,3,49,18],[50,3,50,18],[51,3,51,18],[52,3,52,18],[53,3,53,18],[54,3,54,18],[55,3,55,18],[61,3,61,18],[62,3,62,18],[63,3,63,18],[64,3,64,18],[56,3,56,18],[57,3,57,18],[58,3,58,18],[59,3,59,18],[60,3,60,18]]}
["Pozor: ti podatki so namenjeni identifikaciji obrazca. Vsaka oseba iz ARSO ali izvajalec za ARSO, ki spreminja elemente v tem obrazcu je dolžan uskladiti številko verzije, dopisati sprremembe in podake o avtorju sprememb in skoordinirati, da se ta verzija odloži na za to predvideno mesto. Prav tako je dolžan skoordinirati, da so o novi verziji obveščene ustrezne osebe."]
["Tip obrazca:","VLOGA_ZBIRALEC",null,"Ta naziv za ta tip vloge ostane vedno isti"]
["Verzija:","1.12",null,"To verzijo je potrebno spremeniti, če se delajo spremembe obrazca (če samo spremembe label, se poviša le druga številka, če kakršnekoli strukturne spremembe ali kontrole, se poviša prva)"]
["Datum zadnje spremembe:","2016-10-27",null,"To je potrebno spremeniti ob spremembi"]
["Oseba, ki je izvedla zadnjo spremembo","Sašo Celarc"]
[]
[]
["Opis sprememb:","Sašo Celarc","2016-09-26","Dopolnil tehnične elemnte za spustne sezname, kontrole, …."]
[null,"Sašo Celarc","2016-09-27","Stvari, ki jih je Marjana napisala v mailu  27 September, 2016 09:43:\nNa strani prosilec uredil izbor za \"Registracija za izvajanje dejavnosti zbiranja in odvoza odpadkov\", da je enak izbor kot pri ostalih spustnih seznamih. Šifrant teh treh vrednosti\npremaknil na zavihek sifrant_ostalo in jih odstranil iz prosilec.\nNa zavihku 2_umestitev_zc odstranil združitev stolpcev tam, kjer se vnaša"]
[null,"Sašo Celarc","2016-10-04","Na zavihku prosilec in pooblasc postavil format za polji, kjer je telefonska številka na Text, ker sicer izginejo vodilne 0."]
[null,"Sašo Celarc","2016-10-10","Na zavihku sifrant_ostalo popravil \"Registracija za izvajanje dejavnosti zbiranja in odvoza odpadkov\", kjer sem odstranil presledek, ki je bil odspredaj"]
[null,"Sašo Celarc","2016-10-10","Na zavihkih 1_zb_center2 in 1_zb_center3 popravil zaporedno številko zbirnega centra v J4 na 2 in 3, da ne navajata uporabnika, da se vsi trije zavihki nanašajo na zaporedno številko 1"]
[null,"Sašo Celarc","2016-10-11","Na zavihku obvezne_priloge odstranil stolpec številko zbirnega centra"]
[null,"Sašo Celarc","2016-10-11","Na zavihku up_taksa za celico H21, ki pomeni datum, postavl validacijo na datum med 1.1.2016 in 1.1.2050"]
[null,"Sašo Celarc","2016-10-11","Naredil range SIFRANT_TIPOV_REGISTRACIJ in nanj vezal VLOOKUP za tip registracije na zavihku prosilec - v celici O24. Stolpec O sem dal na hidden."]
[null,"Sašo Celarc","2016-10-11","Naredil range SIFRANT_TIPOV_UPRAVLJALCEV_ZC in nanj vezal VLOOKUP za tip upravljalca na zavihku 1_zb_centerX - v celici M13. Stolpec M sem dal na hidden."]
[null,"Sašo Celarc","2016-10-11","Na zavihku obvezne_priloge, odstranil stolpec za zaporednp številko zbrinega ventra, ker je ARSO podal informacijo, da velja priloga za celotno vlogo. "]
[null,"Sašo Celarc","2016-10-11","Glede na to, da je samo omejeno število obveznih prilog in da imajo zelo dolg tekst, ki je slabo viden v spustenem seznamu, sem dal na obvezne_priloge kar obe prilogi in zraven možnost izbora z da/ne. V stolpcu D, ki je hidden, pa se nahaja ID ODP_SIFRANT_PRILOG, da imam povezavo na IS-ODPADKI"]
[null,"Sašo Celarc","2016-10-11","Na zavihku up_taksa, je v celici H21, kjer se vpisjuje datum, postavljen Data validation na datum (in rang 1.1.2016 naprej)"]
[null,"Sašo Celarc","2016-10-12","Odstranjen \"?\" v  zavihku obvezne_priloge je potrebno v celici C4 "]
[null,"Marjana Ulrich-S","2016-10-13","Na zavihku prosilec spremenjan tekst v B12 in v B14 (prosilec se premeni v stranko), v E19 je narejena leva poravnava, izbrisan tekst v O24 in spremenjen je naziv zavihka (iz prosilec v stranko)"]
[null,"Marjana Ulrich-S","2016-10-13","Na zavihku \"pooblasc\" boldirana spodnja črta tabele"]
[null,"Marjana Ulrich-S","2016-10-13","Na zavihkih 1_zb_center1 in 2 in 3 v celici C12 vsakega zavihka sprememba barve teksta v \"samodejno\""]
[null,"Marjana Ulrich-S","2016-10-13","na zavihku \"3_nenevar_in_nevar_odp\" popravljen tekst v celici B3, boldirana spodnja črta tabele v vrstici 4, sprememba teksta v celici C4 - dodano \"(izbrati iz spustnega seznama)\" in sprememba višine vrstice 4 na 45"]
[null,"Marjana Ulrich-S","2016-10-13","na zavihku \"4_komunalni_odp\" boldirana tekst in spodnja črta tabele v vrstici 4, popravljen tekst v celici C4 in v celici F4 - dodano \"(izbrati iz spustnega seznama)\" dodana desna obroba celice C4 in sprememba višine vrstice 4 na 45"]
[null,"Marjana Ulrich-S","2016-10-13","na zavihku \"up_taksa\" brisan tekst v celici B12 in J15, v celici B4 popravljeno število 22,66 v 22,60. V celicij J15 izvedena kontrola datuma. Vprašanje: v celici B6 se bo številka 35469016 spremijala s koledarskim letom (npr. v 2017 v 35469017) - kako to rešiti"]
[null,"Marjana Ulrich-S","2016-10-13","na zavihku \"sifrant_prilog\" popravek teksta: ... izdelan v skladu z... in Dokazilo o tem, da je vlagatelj upravljavec"]
[null,"Marjana Ulrich-S","2016-10-13","na zavihku \"obvezne_priloge\" dodana barva ozadja celici B4 in C4"]
[null,"Sašo Celarc","2016-10-13","Uredil data validation za DŠ in MŠO na zavihkih \"stranka\" in \"pooblasc\". Za celici za DŠ in MŠO postavil format na Text, da se ob uvozu ne pretvarja v format z decmalnimi ločili."]
[null,"Sašo Celarc","2016-10-13","\"2_umestitev_zc\" - format stolpecev  D, E in G, postavil na General (prej je bilo na Text), sicer obstoječi Data validation ne deluje. Tako sedaj deluje Data validation na D,E,G"]
[null,"Andreja Vihtelič","2016-10-14","Dodana navodila za izpolnjevanje obrazca"]
[null,"Andreja Vihtelič","2016-10-14","Odstranitev napačne kontrole v J15 in popravek kontrole v H21 na listu \"up_taksa\""]
[null,"Sašo Celarc","2016-10-16","Na zavihkih 3_nenevar_in_nevar_odp in 4_komunalni_odp je NAREJEN popravek, da se ne uporablja več funkcija IFNA ampak kombinacija IF in ISNA"]
[null,"Marjana Ulrich-S","2016-10-21","Dopolnitev navodil za izpolnjevanje obrazca"]
[null,"Marjana Ulrich-S","2015-10-21","poprevek teksta na zavihku \"stranka\" v celici B11"]
[null,"Marjana Ulrich-S","2016-10-21","dodan opomba na zavihku \"stranka\" celica I32 - višina vrstice nastavljena na največjo možno vrednos (409)"]
[null,"Marjana Ulrich-S","2016-10-21","na zavihku \"pooblasc\" popravek teksta v celici B3"]
[null,"Marjana Ulrich-S",21102016,"na zavihkih 1_zb_center1, 1_zb_center2 in 1_zb_center3 popravek teksta v vsaki celici B15 (brisano: nenevarni)"]
[null,"Marjana Ulrich-S",21102016,"na zavihkih 1_zb_center1, 1_zb_center2 in 1_zb_center3 popravek teksta v vsaki celici B6 (brisano: zbiralnega mesta, dodano zbirenga centra)"]
[null,"Marjana Ulrich-S","2016-10-21","na zavihku 4-komunalni_odp_ poprevek teksta v celici B2 (v oklepaju namest samo komunalni odpadki tekst:izpolnijo le izvajalci obvezne občinske gospodarske javne službe zbiranja določenih vrst komunalnih odpadkov"]
[null,"Marjana Ulrich-S","2016-10-21","na zavihkih 1_zb_center1, 1_zb_center2 in 1_zb_center3 popravek pogojev v celicah J15 in J18"]
[null,"Marjana Ulrich-S","2016-10-21","na zvihku up_taksa spremenjen naziv v celici B2"]
[null,"Marjana Ulrich-S","2016-10-21","na zvihku obvezne_priloge spremenjen naziv v celici C4"]
[null,"Sašo Celarc","2016-10-24","na zavihku obvezne_priloge uredil zaščito (vnos dovoljen le v C5 in C6)"]
[null,"Sašo Celarc","2016-10-24","na zavihku up_taksa uredil zaščito (vnos dovoljen le v B12, J15, C21 in H21)"]
[null,"Sašo Celarc","2016-10-24","Postavil skrivanje zavihkov po metodi http://www.techrepublic.com/blog/microsoft-office/hide-excel-sheets-really-hide-them/, o tem in navodila poslal mail Andreji in Marjani 24.10.2016 19:30"]
[null,"Sašo Celarc","2016-10-27","Na zavihku 3_nenevar_in_nevar_odp je bila pomotoma defniran Excel Table objekt in je to ob dodajanju vrstice povzročalo čudna sporočila (javila Andreja  27. oktober 2016 11:51). To sem odstranil"]
[null,"Sašo Celarc","2016-10-27","Dodani macroji ProtectAll(), UnProtectAll(), VeryHide(), UnHideAll(), da je enako kot na OVD"]
[null,"Sašo Celarc","2016-10-27","Dodan macro VrniGeslo(), da se zamenja le na enem mestu, če je potrebno "]
[null,"Sašo Celarc","2016-10-27","Mehanizem za dodajanje vrstc na koncu tabel, ker sicer se niso kopirale formula, če je user to dodajal sam. Za to je potreben macro InSert_Row() in named range z imenom ZA_ZADNJO_VRSTICO, ki mora biti definiran na vsakem zavihku v stolpcu A eno vrstico za koncem tabele (ki jo ozančuje okvir) ter gumb, ki kliče macro"]
[null,"Andreja Vihtelič","2016-10-28","Popravki tekstovnih napak in dodano navodilo za vključitev makrov in uporabo gumba Dodaj vrstico"]
[null,"Andreja Vihtelič","2016-10-28","V zvihek 5_druga_dokazila je dodano besedilo opombe"]
[null,"Andreja Vihtelič","2016-10-28","Dopolnjena so navodila glede kopiranja odpadkov na zavihkih 3_nenvar_in_nevar_odp in 4_komunalni_odp"]
[null,"Sašo Celarc","2016-11-07","Spremenil zaščito preko macrojev tako da se na zavihkih 3_nenevar_in_nevar_odp, 4_komunalni_odp lahko formatira vrstice"]
[null,"Andreja Vihtelič","2017-01-20","Sprememba letnice pri upravni taksi na listu Up_taksa"]
[null,"Andreja Vihtelič","2017-01-23","Popravek navodil"]
[null,"Sašo Celarc","2017-07-16","Popravek formule za * za nevarni/nenevarni odpadek na 3_nenevar_in_nevar_odp, da deluje tudi v excel 2007"]
[null,"Monolit","2018-09-17","Spremembe glede mejnik 1 po pogodbi 2551-18-100468"]
[null,"Monolit","2018-09-26","Ureditev problem, ker na listu 3-nenevarni_in_nevarni odpadki ni mogoče izbirati odpadkov od celice C5 dalje \nugotovil sem, da je bilo nekaj narobe z definicijo Rangov, predvidevam, da se je to dogajalo, ko so kopirali liste.\nDodaj vrstico v  Dodaj vrstico/vrstice"]

{"sheet":"navodila","index":1,"n_rows":63,"n_cols":2,"rows_kept":63,"cut":false,"hidden":false,"merged":[[1,0,1,1]]}
[]
["Navodila  za izpolnjevanje obrazca VLOGA ZA PRIDOBITEV/SPREMEMBO ODLOČBE O VPISU V EVIDENCO ZBIRALCEV ODPADKOV"]
[]
["Zakonodajna osnova"]
[null,"30. člen Uredbe o odpadkih (Uradni list RS, št. 77/22) določa, da zbiralec lahko zbira odpadke, če ima pridobljeno odločbo o vpisu v evidenco zbiralcev odpadkov. Vloga za vpis v evidenco zbiralcev odpadkov se vloži na podlagi določb tretjega in četrtega odstavka 30. člena navedenega predpisa. Zbiralec mora spremembo imena ali naslova oziroma firme ali sedeža, ali spremembo glede vrste odpadkov, ki jih zbira, glede skupne količine odpadkov ali skupne količine nevarnih odpadkov, ki jih predhodno skladišči ali glede kraja ali zmogljivosti zbirnega centra, prijaviti z vlogo na podlagi določb 33. člena navedenega predpisa. "]
["Namen"]
[null,"Obrazec je namenjen pripravi vloge za pridobitev/spremembe odločbe o vpisu v evidenco zbiralcev odpadkov, ki jo vodi ministrstvo v okviru evidence oseb, ki imajo potrdilo za opravljanje dejavnosti varstva okolja, v skladu z zakonom, ki ureja varstvo okolja."]
["Definicije pojmov, uporabljenih v obrazcu"]
[null,"Vsebina obrazca je usklajena s tistimi določili 30. in 33. člena Uredbe o odpadkih (Uradni list RS, št. 77/22), ki določajo vsebino vloge za pridobitev odločbe o vpisu v evidenco zbiralcev odpadkov oziroma vloge za spremembo odločbe o vpisu v evidenco zbiralcev odpadkov."]
[]
["Splošna navodila za izpolnjevanje obrazca"]
[null,"Obrazec, ki je dostopen na spletni strani Slovenska poslovna točka (https://spot.gov.si/sl/dejavnosti-in-poklici/dovoljenja/vpis-v-evidenco-zbiralcev-odpadkov/) pod rubriko \"Postopki\", shranite na svoj računalnik. "]
[null,"Kliknite na gumb Omogoči vsebino poleg varnostnega opozorila pod menijsko vrstico, da omogočite izvajanje makrojev, če to ni omogočeno. Potrdite, da želite spremeniti to datoteko v zaupanja vreden dokument."]
[null,"Navedeni podatki v obrazcu vloge naj izkazujejo dejansko trenutno stanje glede števila lokacij in zmogljivosti zbirnih centrov in glede števila in vrste odpadkov ter občin (za izvajalce obvezne občinske gospodarske javne službe) - prvotno ali po katerikoli nadaljnji odločbi o spremembi."]
[null,"Vnos podatkov je mogoč le v celice, ki nimajo senčenega ozadja."]
[null,"Obvezno je potrebno izpolniti podatke na zavihkih od \"stranka\" do vključno \"up_taksa\", razen na zavihku \"pooblasc\", če vas ne zastopa pooblaščenec. "]
[null,"Če imate več kot 3 zbirne centre, dodajte za \"1_zc_center3\" nov zavihek na naslednji način: zavihek \"1_zb_center3\", v katerega še niste vnesli podatkov, kopirajte in ga preimenujte v \"1_zb_center4\". Pri vnosu podatkov na novem zavihku najprej v celici J4 vnesite 4. Postopek ponovite za vse nadaljnje zbirne centre."]
[null,"Količine odpakov vnesite v kg brez decimalnih mest. Tudi podatki za površine naj bodo cela števila."]
[null,"Ko vnesete podatke v obrazec, ga shranite pod nazivom Vloga_zbiralec_maticna-vasega podjetja.xlsm (npr.: vloga_zbiralec_1234567000.xlsm). V primeru prejšnjih verzij Excela do 2003 je končnica v imenu datoteke xls."]
[null,"Natisnite zavihke izpolnjenega obrazca in sicer od zavihka \"stranka\" do vključno z zavihkom \"up_taksa\", razen zavihek \"pooblasc\", če v le tega niste vnesli podatkov.  S strani zakonitega zastopnika ali pooblaščenca podpisano papirno obliko vloge, vključno z obveznimi prilogami (v skladu z določili Uredbe o odpadkih, objavljene v UL RS, št. 77/22) pošljite na naslov: Ministrstvo za okolje in prostor, Dunajska cesta 48,  1000 Ljubljana s pripisom: vloga za vpis v evidenco zbiralcev odpadkov.  Datoteko v Excelu pa pošljite na e-naslov: gp.mop@gov.si."]
[]
["Navodila za izpolnjevanje posameznega zavihka obrazca"]
["Zavihek \"stranka\""]
[null,"Izberite občino iz spustnega seznama (ob kliku na celico E16, se pojavi na desnem robu celice puščica, kliknite nanjo in izberite ustrezno občino)."]
[null,"Vnesite 8 mestno davčno številko."]
[null,"Vnesite 10 mestno matično številko (s tremi ničlami na koncu)."]
[null,"Registracijo za izvajanje dejavnosti zbiranja in odvoza odpadkov izberite iz seznama  (ob kliku na celico K24 se pojavi na desnem robu celice puščica, kliknite nanjo in izberite ustrezno - glede na registracijo podjetja po Standarni klasifikaciji dejavnosti)."]
[null,"V primeru vložene vloge za spremembo izdanega potrdila oz. spremembo izdane 1.,2. itd. odločbe o spremembi vnesite podatke za: Št. izdanega prvega potrdila (celica I29) , Datum izdaje (celica I30),  Številke in datumi odločb o spremembah potrdila (celica I31) in Opis spremembe (celica I32). Pri opisu spremembe navedite sledeče: dodaja se nov zbirni center ali ukinja se obstoječi zbirni center, previdena večja količina predhodno skladiščenih vseh odpadkov ali le nevarnih odpadkov, poveča se število zbranih vseh ali le nevarnih odpadkov (navedite številke), zmanjša se število vseh ali le nevarnih odpadkov (navedite številke). V primeru obsežnejšega opisa sprememb se le ta lahko opredeli v dodatni datoteki, ki je priložena k vlogi za spremembo. "]
["Zavihek \"pooblasc\"- vnesite le, če vas zastopa pooblaščenec"]
[null,"Vnesite 8 mestno davčno številko."]
[null,"Vnesite 10 mestno matično številko (s tremi ničlami na koncu)."]
["Zavihki \"1_zb_centeršt\""]
[null,"V obrazcu vloge za vpis v evidenco ali spremembe vpisa izpolnite toliko zavihkov, kolikor zbirnih centrov za predhodno skladiščenje odpadkov imate."]
[null,"Nazive zbirnih centrov opredelite z njihovimi imeni."]
[null,"Občino in vrsto upravljavca v celicah C12 in J13 izberete s klikom na omenjeni celici, na desnem robu se pojavi puščica, kliknete nanjo in iz spustnega seznama pri posamezni izberite ustrezno."]
[null,"Vnesite število \"0\", v primeru, da je podatek za količino v celicah  J16 ali J19 enako 0 kg."]
["Zavihek \"2_umestitev_zc\""]
[null,"Za vsak zbirni center vnesite lokacijske podatke. Pred vnosom v obrazec obvezno preverite podatke o parcelah (številke) v zemljiškem katastru, saj se podatki lahko spreminjajo. V primeru napačne navedbe katasterskih občin ali parcelnih številk ali številk stavb boste morali popravljen obrazec ponovno posredovati na MOP."]
[null,"V stolpec \"Zap. št. zbirnega centra\" vnesite številke od 1 naprej, odvisno od števila zbirnih centrov. Zaporedna številka zbirnega centra naj se ponovi tolikokrat, kolikor različnih parcelnih številk imate. Če obstaja na parceli stavba, navedite njeno številko, če jih je več, številke stavb ločite z vejico in presledkom."]
[null,"Po potrebi dodajte vrstice. Pod rubriko \"Št. vrstic:\" vnesite število vrstic, ki jih želite dodati, nato kliknite na gumb Dodaj vrstico/vrstice."]
["Zavihek \"3_nenevar_in_nevar_odp\""]
[null,"Za vsak zbirni center vnesite samo odpadke, ki jih boste zbirali, tako da so številke odpadkov urejene (najmanjša naj bo zgoraj). Tudi izvajalci obvezne občinske gospodarske javne službe zbiranja določenih vrst odpadkov vnesete odpadke, ki jih zbirate v okviru javne službe."]
[null,"V stolpec \"Zap. št. zbirnega centra\" vnesite številke od 1 naprej, odvisno od števila zbirnih centrov. Zaporedna številka zbirnega centra naj se ponovi tolikokrat, kolikor različnih odpadkov boste zbirali v zbirnem centru. "]
[null,"Odpadek izberete s klikom na celico v stolpcu C, na desnem robu celice se pojavi puščica, kliknete nanjo in iz spustnega seznama izberite ustrezni odpadek. Podatki v stolpcih D in E se zapolnijo sami, glede na izbiro številke odpadka."]
[null,"Po potrebi dodajte vrstice. Pod rubriko \"Št. vrstic:\" vnesite število vrstic, ki jih želite dodati, nato kliknite na gumb Dodaj vrstico/vrstice."]
[null,"Če imate več zbirnih centrov in enake odpadke v njih, lahko vnesete odpadke najprej za  prvi zbirni center, nato pa te kopirate. Pri kopiranju označite le podatke v stolpcu C in jih kopirajte v prazne celice spodaj. Vsebino v praznih celicah v stolpcu B  vnesite tako, da označite blok celic, kjer boste vnesli novo zap.št. zbirnega centra, sledi vnos številke zbirnega centra in potrditev vnosa s CTRL+Enter.  Če imate vrstic z zap. št. zbirnih centrov in odpadki več kot 100, je potrebno pred kopiranjem najprej s kliki na gumb Dodaj vrstico dodati toliko vrstic, kot jih potrebujete za vnos podatkov."]
[null,"Po potrebi prilagodite višino vrstic."]
["Zavihek \"4_komunalni_odp\""]
[null,"Za vsak zbirni center vnesite komunalne odpadke, ki jih boste zbirali, tako da so številke odpadkov urejene (najmanjša naj bo zgoraj). Vnesejo se samo odpadki, ki jih zbira izvajalec obvezne občinske gospodarske javne službe zbiranja določenih vrst odapdkov v okviru izvajanje te službe. "]
[null,"V stolpec \"Zap. št. zbirnega centra\" vnesite številke od 1 naprej, odvisno od števila zbirnih centrov. Zaporedna številka zbirnega centra naj se ponovi tolikokrat, kolikor različnih komunalnih odpadkov boste zbirali v zbirnem centru. "]
[null,"Odpadek izberete s klikom na celico v stolpcu C, na desnem robu celice se pojavi puščica, kliknete nanjo in iz spustnega seznama izberite ustrezni odpadek. Podatki v stolpcih D in E se zapolnijo sami, glede na izbiro številke odpadka."]
[null,"Občino pri vsakem odpadku izberete s klikom na celico v stolpcu F, na desnem robu celice se pojavi puščica, kliknete nanjo in iz spustnega seznama izberite ustrezno občino."]
[null,"Po potrebi dodajte vrstico s klikom na gumb Dodaj vrstico."]
[null,"Če imate več zbirnih centrov in enake odpadke v njih, lahko vnesete odpadke najprej za  prvi zbirni center, nato pa te kopirate. Pri kopiranju označite le podatke v stolpcu C in jih kopirajte v prazne celice spodaj. Vsebino v praznih celicah v stolpcu B  vnesite tako, da označite blok celic, kjer boste vnesli novo zap.št. zbirnega centra, sledi vnos številke zbirnega centra in potrditev vnosa s CTRL+Enter.  Če imate vrstic z zap. št. zbirnih centrov in odpadki več kot 50, je potrebno pred kopiranjem najprej s kliki na gumb Dodaj vrstico dodati toliko vrstic, kot jih potrebujete za vnos podatkov."]
[null,"Po potrebi prilagodite višino vrstic."]
["Zavihek \"obvezne_priloge\""]
[null,"V stolpcu C kliknite v celico poleg navedene priloge, na desni se pojavi puščica, kliknite nanjo in izberite da ali ne (odvisno od tega ali boste posamezno prilogo dodali k vlogi ali ne)."]
["Zavihek \"5_druga_dokazila\""]
[null,"V primeru, da boste k vlogi priložili še druga dokazila, ki niso navedena v zavihku \"obvezne_priloge\", jih navedite tu za vsak zbirni center posebej."]
[null,"V stolpec \"Zap. št. zbirnega centra\" vnesite številke od 1 naprej, odvisno od števila zbirnih centrov. Zaporedna številka zbirnega centra naj se ponovi tolikokrat, kolikor različnih dokazil imate za posamezni zbirni center. "]
[null,"Po potrebi dodajte vrstice. Pod rubriko \"Št. vrstic:\" vnesite število vrstic, ki jih želite dodati, nato kliknite na gumb Dodaj vrstico/vrstice."]
["Zavihek \"up_taksa\""]
[null,"Vnesite podatke v celice B12, J15, C21 in H21.  V celico H21 vnesite datum po 1.1.2016. Zakoniti zastopnik ali pooblaščenec se podpiše na tiskano obliko obrazca vloge."]

{"sheet":"stranka","index":2,"n_rows":32,"n_cols":8,"rows_kept":32,"cut":false,"hidden":false,"merged":[[28,8,28,13],[30,1,30,7],[30,8,30,13],[15,4,15,13],[15,2,15,3],[21,1,21,3],[21,4,21,13],[16,4,16,13],[18,2,18,3],[18,4,18,13],[17,2,17,3],[17,4,17,13],[22,1,22,3],[24,1,24,3],[23,1,23,9],[23,10,23,13],[36,3,36,4],[19,2,19,3],[19,4,19,13],[27,2,27,3],[22,4,22,13],[25,4,25,13],[26,4,26,13],[27,4,27,13],[36,1,36,2],[20,10,20,13],[24,4,24,13],[31,1,31,7],[31,8,31,13],[29,1,29,7],[29,8,29,13],[28,1,28,7],[25,1,25,3],[26,2,26,3],[9,1,9,13],[10,1,10,13],[11,1,11,13],[13,1,13,3],[13,4,13,13],[12,1,12,13],[14,1,14,3],[14,4,14,13],[16,2,16,3]]}
[]
[]
[]
[]
[]
[]
[]
[]
[]
[null,"VLOGA ZA PRIDOBITEV/SPREMEMBO ODLOČBE O VPISU V EVIDENCO ZBIRALCEV ODPADKOV"]
[null,"na podlagi 30. in 33. člena Uredbe o odpadkih (Uradni list RS, št. 77/22)"]
[null,"Podatki o stranki - zbiralcu odpadkov"]
[null,"Opomba:  (1) - naziv pravne osebe ali samostojnega podjetnika posameznika se navede kot je navedeno v poslovnem registru"]
[null," NAZIV stranke (1):"]
[null," Naslov oziroma sedež:"]
[null,null,"občina:"]
[null,null,"naselje:"]
[null,null,"ulica:"]
[null,null,"hišna številka:"]
[null,null,"pošta:"]
[null,null,"poštna številka:",null," "," "," "," "]
[null,"Davčna številka:"]
[null,"Matična številka:"]
[null,"Registracija za izvajanje dejavnosti zbiranja in odvoza odpadkov (izbrati eno od navedenih možnosti):"]
[null,"Zakoniti zastopnik:"]
[null,"Kontaktna oseba:"]
[null,null,"telefon:"]
[null,null,"e-naslov:"]
[null,"  Št. izdanega prvega potrdila :"]
[null,"Datum izdaje:"]
[null,"Številke in datumi odločb o spremembah potrdila:"]
[null,"Opis spremembe:"]

{"sheet":"pooblasc","index":3,"n_rows":16,"n_cols":8,"rows_kept":16,"cut":false,"hidden":false,"merged":[[15,2,15,3],[15,4,15,13],[2,1,2,13],[11,4,11,13],[12,1,12,3],[12,4,12,13],[13,1,13,3],[13,4,13,13],[14,2,14,3],[14,4,14,13],[8,2,8,3],[8,4,8,13],[11,1,11,3],[9,10,9,13],[5,2,5,3],[5,4,5,13],[6,2,6,3],[6,4,6,13],[7,2,7,3],[7,4,7,13],[10,1,10,3],[10,4,10,13],[1,1,1,13],[3,1,3,3],[3,4,3,13],[4,1,4,3],[4,4,4,13]]}
[]
[null,"Podatki o pooblaščencu, ki zastopa stranko (2)"]
[null,"Opomba:  (2) - rubrika se izpolni le v primeru, če stranko zastopa pooblaščenec; k vlogi mora biti priloženo pooblastilo stranke"]
[null," Ime oz. naziv pooblaščenca:"]
[null," Naslov oziroma sedež:"]
[null,null,"naselje:"]
[null,null,"ulica:"]
[null,null,"hišna številka:"]
[null,null,"pošta:"]
[null,null,"poštna številka:",null,null," "," "," "]
[null,"Davčna številka:"]
[null,"Matična številka:"]
[null,"Zakoniti zastopnik:"]
[null,"Kontaktna oseba:"]
[null,null,"telefon:"]
[null,null,"e-naslov:"]

{"sheet":"1_zb_center1","index":4,"n_rows":20,"n_cols":13,"rows_kept":20,"cut":false,"hidden":false,"merged":[[16,1,16,8],[16,9,16,11],[18,1,18,8],[19,1,19,8],[18,9,18,11],[19,9,19,11],[17,1,17,8],[17,9,17,11],[11,2,11,11],[13,1,13,11],[14,1,14,8],[14,9,14,11],[15,1,15,8],[15,9,15,11],[12,1,12,8],[12,9,12,11],[1,1,1,11],[2,1,2,11],[5,2,5,11],[6,1,10,1],[6,2,6,4],[6,5,6,11],[7,2,7,4],[7,5,7,11],[8,2,8,4],[8,5,8,11],[9,2,9,4],[9,5,9,11],[3,1,3,8],[3,9,3,11],[10,2,10,7],[10,8,10,11]]}
[]
[null,"1. Podatki o zbirnem centru, kjer se bodo odpadki predhodno skladiščili"]
[]
[null,"Zaporedna številka zbirnega centra: ",null,null,null,null,null,null,null,1]
[]
[null,"Naziv zbirnega centra:"]
[null,"Naslov:","naselje:"]
[null,null,"ulica:"]
[null,null,"hišna št.:"]
[null,null,"pošta:"]
[null,null,"poštna št.:"]
[null,"Občina (izbrati iz spustnega seznama): "]
[null,"Upravljavec zbirnega centra (izbrati eno od navedenih možnosti):",null,null,null,null,null,null,null,null,null,null,{"$f":"VLOOKUP(J13,SIFRANT_TIPOV_UPRAVLJALCEV_ZC,2,FALSE)","v":{"$error":"#N/A"}}]
[null,"Zmogljivost zbirnega centra"]
[null,"Skupna količina odpadkov, ki se lahko hkrati predhodno skladišči v zbirnem centru glede na njegovo zmogljivost (kg):"]
[null,"Skupna količina nevarnih odpadkov, ki se lahko hkrati predhodno skladišči v zbirnem centru glede na njegovo zmogljivost (kg):"]
[null,"Količina trdnih gorljivih odpadkov, če se namerava hkrati predhodno skladiščiti 200 m3 ali več trdnih gorljivih odpadkov na prostem (kg)"]
[null,"Površina skladiščnega prostora za odpadke (m2):"]
[null,"Skupna letna količina zbranih odpadkov (kg):"]
[null,"Od tega nevarnih odpadkov (kg):"]

{"sheet":"1_zb_center2","index":5,"n_rows":20,"n_cols":13,"rows_kept":20,"cut":false,"hidden":false,"merged":[[14,1,14,8],[14,9,14,11],[1,1,1,11],[2,1,2,11],[3,1,3,8],[3,9,3,11],[5,2,5,11],[9,2,9,4],[9,5,9,11],[10,2,10,7],[6,2,6,4],[6,5,6,11],[7,2,7,4],[7,5,7,11],[8,2,8,4],[8,5,8,11],[19,1,19,8],[19,9,19,11],[15,1,15,8],[15,9,15,11],[17,1,17,8],[17,9,17,11],[18,1,18,8],[18,9,18,11],[16,1,16,8],[16,9,16,11],[11,2,11,11],[12,1,12,8],[12,9,12,11],[6,1,10,1],[13,1,13,11],[10,8,10,11]]}
[]
[null,"1. Podatki o zbirnem centru, kjer se bodo odpadki predhodno skladiščili"]
[]
[null,"Zaporedna številka zbirnega centra: ",null,null,null,null,null,null,null,2]
[]
[null,"Naziv zbirnega centra:"]
[null,"Naslov:","naselje:"]
[null,null,"ulica:"]
[null,null,"hišna št.:"]
[null,null,"pošta:"]
[null,null,"poštna št.:"]
[null,"Občina (izbrati iz spustnega seznama): "]
[null,"Upravljavec zbirnega centra (izbrati eno od navedenih možnosti):",null,null,null,null,null,null,null,null,null,null,{"$f":"VLOOKUP(J13,SIFRANT_TIPOV_UPRAVLJALCEV_ZC,2,FALSE)","v":{"$error":"#N/A"}}]
[null,"Zmogljivost zbirnega centra"]
[null,"Skupna količina odpadkov, ki se lahko hkrati predhodno skladišči v zbirnem centru glede na njegovo zmogljivost (kg):"]
[null,"Skupna količina nevarnih odpadkov, ki se lahko hkrati predhodno skladišči v zbirnem centru glede na njegovo zmogljivost (kg):"]
[null,"Količina trdnih gorljivih odpadkov, če se namerava hkrati predhodno skladiščiti 200 m3 ali več trdnih gorljivih odpadkov na prostem (kg)"]
[null,"Površina skladiščnega prostora za odpadke (m2):"]
[null,"Skupna letna količina zbranih odpadkov (kg):"]
[null,"Od tega nevarnih odpadkov (kg):"]

{"sheet":"1_zb_center3","index":6,"n_rows":20,"n_cols":13,"rows_kept":20,"cut":false,"hidden":false,"merged":[[14,1,14,8],[14,9,14,11],[1,1,1,11],[2,1,2,11],[3,1,3,8],[3,9,3,11],[5,2,5,11],[9,2,9,4],[9,5,9,11],[10,2,10,7],[6,2,6,4],[6,5,6,11],[7,2,7,4],[7,5,7,11],[8,2,8,4],[8,5,8,11],[19,1,19,8],[19,9,19,11],[15,1,15,8],[15,9,15,11],[17,1,17,8],[17,9,17,11],[18,1,18,8],[18,9,18,11],[16,1,16,8],[16,9,16,11],[11,2,11,11],[12,1,12,8],[12,9,12,11],[6,1,10,1],[13,1,13,11],[10,8,10,11]]}
[]
[null,"1. Podatki o zbirnem centru, kjer se bodo odpadki predhodno skladiščili"]
[]
[null,"Zaporedna številka zbirnega centra: ",null,null,null,null,null,null,null,3]
[]
[null,"Naziv zbirnega centra:"]
[null,"Naslov:","naselje:"]
[null,null,"ulica:"]
[null,null,"hišna št.:"]
[null,null,"pošta:"]
[null,null,"poštna št.:"]
[null,"Občina (izbrati iz spustnega seznama): "]
[null,"Upravljavec zbirnega centra (izbrati eno od navedenih možnosti):",null,null,null,null,null,null,null,null,null,null,{"$f":"VLOOKUP(J13,SIFRANT_TIPOV_UPRAVLJALCEV_ZC,2,FALSE)","v":{"$error":"#N/A"}}]
[null,"Zmogljivost zbirnega centra"]
[null,"Skupna količina odpadkov, ki se lahko hkrati predhodno skladišči v zbirnem centru glede na njegovo zmogljivost (kg):"]
[null,"Skupna količina nevarnih odpadkov, ki se lahko hkrati predhodno skladišči v zbirnem centru glede na njegovo zmogljivost (kg):"]
[null,"Količina trdnih gorljivih odpadkov, če se namerava hkrati predhodno skladiščiti 200 m3 ali več trdnih gorljivih odpadkov na prostem (kg)"]
[null,"Površina skladiščnega prostora za odpadke (m2):"]
[null,"Skupna letna količina zbranih odpadkov (kg):"]
[null,"Od tega nevarnih odpadkov (kg):"]

{"sheet":"2_umestitev_zc","index":7,"n_rows":43,"n_cols":8,"rows_kept":43,"cut":false,"hidden":false,"merged":[[1,1,1,7],[2,1,2,7],[3,4,3,6]]}
[]
[null,"2. Umestitev zbirnih centrov v prostor"]
[]
[null,"Zap. št. zbirnega centra","naziv KO","številka KO","številka parcele",null,null,"ID stavbe (ID večih stavb ločiti z vejico)"]
[null,null,null,null,null,{"$f":"\"/\"","v":"/"}]
[null,null,null,null,null,{"$f":"\"/\"","v":"/"}]
[null,null,null,null,null,"/"]
[null,null,null,null,null,"/"]
[null,null,null,null,null,"/"]
[null,null,null,null,null,"/"]
[null,null,null,null,null,"/"]
[null,null,null,null,null,"/"]
[null,null,null,null,null,"/"]
[null,null,null,null,null,"/"]
[null,null,null,null,null,"/"]
[null,null,null,null,null,"/"]
[null,null,null,null,null,"/"]
[null,null,null,null,null,"/"]
[null,null,null,null,null,"/"]
[null,null,null,null,null,"/"]
[null,null,null,null,null,"/"]
[null,null,null,null,null,"/"]
[null,null,null,null,null,"/"]
[null,null,null,null,null,"/"]
[null,null,null,null,null,"/"]
[null,null,null,null,null,"/"]
[null,null,null,null,null,"/"]
[null,null,null,null,null,"/"]
[null,null,null,null,null,"/"]
[null,null,null,null,null,"/"]
[null,null,null,null,null,"/"]
[null,null,null,null,null,"/"]
[null,null,null,null,null,"/"]
[null,null,null,null,null,"/"]
[null,null,null,null,null,"/"]
[null,null,null,null,null,"/"]
[null,null,null,null,null,"/"]
[null,null,null,null,null,"/"]
[null,null,null,null,null,"/"]
[null,null,null,null,null,"/"]
[]
[]
["Št. vrstic:",2]

{"sheet":"3_nenevar_in_nevar_odp","index":8,"n_rows":93,"n_cols":5,"rows_kept":93,"cut":false,"hidden":false,"merged":[[2,1,2,4],[1,1,1,4]]}
[]
[null,"3. Podatki o nenevarnih in nevarnih odpadkih, ki se bodo zbirali "]
[]
[null,"Zap.št. zbirnega centra","Št. odpadka (izbrati iz spustnega seznama)","Nevaren","Naziv odpadka"]
[null,null,null,{"$f":"IF(ISNA(IF(VLOOKUP(C5,SIFRANT_ODPADKOV,3,FALSE)=\"*\",\"*\",\"\")),\"\",IF(VLOOKUP(C5,SIFRANT_ODPADKOV,3,FALSE)=\"*\",\"*\",\"\"))","v":""},{"$f":"IF(ISNA(VLOOKUP(C5,SIFRANT_ODPADKOV,2,FALSE)),\"\",VLOOKUP(C5,SIFRANT_ODPADKOV,2,FALSE))","v":""}]
[null,null,null,"",""]
[null,null,null,"",""]
[null,null,null,"",""]
[null,null,null,"",""]
[null,null,null,"",""]
[null,null,null,"",""]
[null,null,null,"",""]
[null,null,null,"",""]
[null,null,null,"",""]
[null,null,null,"",""]
[null,null,null,"",""]
[null,null,null,"",""]
[null,null,null,"",""]
[null,null,null,"",""]
[null,null,null,"",""]
[null,null,null,"",""]
[null,null,null,"",""]
[null,null,null,"",""]
[null,null,null,"",""]
[null,null,null,"",""]
[null,null,null,"",""]
[null,null,null,"",""]
[null,null,null,"",""]
[null,null,null,"",""]
[null,null,null,"",""]
[null,null,null,"",""]
[null,null,null,"",""]
[null,null,null,"",""]
[null,null,null,"",""]
[null,null,null,"",""]
[null,null,null,"",""]
[null,null,null,{"$f":"IF(ISNA(IF(VLOOKUP(C37,SIFRANT_ODPADKOV,3,FALSE)=\"*\",\"*\",\"\")),\"\",IF(VLOOKUP(C37,SIFRANT_ODPADKOV,3,FALSE)=\"*\",\"*\",\"\"))","v":""},{"$f":"IF(ISNA(VLOOKUP(C37,SIFRANT_ODPADKOV,2,FALSE)),\"\",VLOOKUP(C37,SIFRANT_ODPADKOV,2,FALSE))","v":""}]
[null,null,null,"",""]
[null,null,null,"",""]
[null,null,null,"",""]
[null,null,null,"",""]
[null,null,null,"",""]
[null,null,null,"",""]
[null,null,null,"",""]
[null,null,null,"",""]
[null,null,null,"",""]
[null,null,null,"",""]
[null,null,null,"",""]
[null,null,null,"",""]
[null,null,null,"",""]
[null,null,null,"",""]
[null,null,null,"",""]
[null,null,null,"",""]
[null,null,null,"",""]
[null,null,null,"",""]
[null,null,null,"",""]
[null,null,null,"",""]
[null,null,null,"",""]
[null,null,null,"",""]
[null,null,null,"",""]
[null,null,null,"",""]
[null,null,null,"",""]
[null,null,null,"",""]
[null,null,null,"",""]
[null,null,null,"",""]
[null,null,null,"",""]
[null,null,null,"",""]
[null,null,null,"",""]
[null,null,null,{"$f":"IF(ISNA(IF(VLOOKUP(C69,SIFRANT_ODPADKOV,3,FALSE)=\"*\",\"*\",\"\")),\"\",IF(VLOOKUP(C69,SIFRANT_ODPADKOV,3,FALSE)=\"*\",\"*\",\"\"))","v":""},{"$f":"IF(ISNA(VLOOKUP(C69,SIFRANT_ODPADKOV,2,FALSE)),\"\",VLOOKUP(C69,SIFRANT_ODPADKOV,2,FALSE))","v":""}]
[null,null,null,"",""]
[null,null,null,"",""]
[null,null,null,"",""]
[null,null,null,"",""]
[null,null,null,"",""]
[null,null,null,"",""]
[null,null,null,"",""]
[null,null,null,"",""]
[null,null,null,"",""]
[null,null,null,"",""]
[null,null,null,"",""]
[null,null,null,"",""]
[null,null,null,"",""]
[null,null,null,"",""]
[null,null,null,"",""]
[null,null,null,"",""]
[null,null,null,"",""]
[null,null,null,"",{"$f":"IF(ISNA(VLOOKUP(C87,SIFRANT_ODPADKOV,2,FALSE)),\"\",VLOOKUP(C87,SIFRANT_ODPADKOV,2,FALSE))","v":""}]
[null,null,null,"",""]
[null,null,null,"",""]
[null,null,null,{"$f":"IF(ISNA(IF(VLOOKUP(C90,SIFRANT_ODPADKOV,3,FALSE)=\"*\",\"*\",\"\")),\"\",IF(VLOOKUP(C90,SIFRANT_ODPADKOV,3,FALSE)=\"*\",\"*\",\"\"))","v":""},{"$f":"IF(ISNA(VLOOKUP(C90,SIFRANT_ODPADKOV,2,FALSE)),\"\",VLOOKUP(C90,SIFRANT_ODPADKOV,2,FALSE))","v":""}]
[]
[]
["Št. vrstic:",1]

{"sheet":"4_komunalni_odp","index":9,"n_rows":63,"n_cols":6,"rows_kept":63,"cut":false,"hidden":true,"merged":[[1,1,1,5],[2,1,2,5]]}
[]
[null,"4. Podatki o odpadkih, ki se bodo zbirali (izpolnijo le izvajalci obvezne občinske gospodarske javne službe zbiranja določenih vrst komunalnih odpadkov)"]
[null,"(Opomba: možno je  izbrati le določene številke odpadkov, )"]
[null,"Zap.št. zbirnega centra","Št. odpadka (izbrati iz spustnega seznama)","Nevaren","Naziv odpadka","Občina (izbrati iz spustnega seznama)"]
[null,null,null,{"$f":"_xlfn.IFNA(IF(VLOOKUP(C5,SIFRANT_ODPADKOV,3,FALSE)=\"*\",\"*\",\"\"),\"\")","v":""},{"$f":"IF(ISNA(VLOOKUP(C5,SIFRANT_ODPADKOV,2,FALSE)),\"\",VLOOKUP(C5,SIFRANT_ODPADKOV,2,FALSE))","v":""}]
[null,null,null,"",""]
[null,null,null,"",""]
[null,null,null,"",""]
[]
[null,null,null,"",""]
[null,null,null,"",""]
[null,null,null,"",""]
[null,null,null,"",""]
[null,null,null,{"$f":"_xlfn.IFNA(IF(VLOOKUP(C14,SIFRANT_ODPADKOV,3,FALSE)=\"*\",\"*\",\"\"),\"\")","v":""},{"$f":"IF(ISNA(VLOOKUP(C14,SIFRANT_ODPADKOV,2,FALSE)),\"\",VLOOKUP(C14,SIFRANT_ODPADKOV,2,FALSE))","v":""}]
[null,null,null,"",""]
[null,null,null,"",""]
[null,null,null,"",""]
[null,null,null,{"$f":"_xlfn.IFNA(IF(VLOOKUP(C18,SIFRANT_ODPADKOV,3,FALSE)=\"*\",\"*\",\"\"),\"\")","v":""},{"$f":"IF(ISNA(VLOOKUP(C18,SIFRANT_ODPADKOV,2,FALSE)),\"\",VLOOKUP(C18,SIFRANT_ODPADKOV,2,FALSE))","v":""}]
[null,null,null,"",""]
[null,null,null,"",""]
[null,null,null,"",""]
[null,null,null,"",""]
[null,null,null,"",""]
[null,null,null,"",""]
[null,null,null,"",""]
[null,null,null,"",""]
[null,null,null,"",""]
[null,null,null,"",""]
[null,null,null,"",""]
[null,null,null,"",""]
[null,null,null,"",""]
[null,null,null,"",""]
[null,null,null,"",""]
[null,null,null,"",""]
[null,null,null,"",""]
[null,null,null,"",""]
[null,null,null,"",""]
[null,null,null,"",""]
[null,null,null,"",""]
[null,null,null,"",""]
[null,null,null,"",""]
[null,null,null,"",""]
[null,null,null,"",""]
[null,null,null,"",""]
[null,null,null,"",""]
[null,null,null,"",""]
[null,null,null,"",""]
[null,null,null,"",""]
[null,null,null,{"$f":"_xlfn.IFNA(IF(VLOOKUP(C49,SIFRANT_ODPADKOV,3,FALSE)=\"*\",\"*\",\"\"),\"\")","v":""},""]
[null,null,null,"",""]
[null,null,null,"",""]
[null,null,null,{"$f":"_xlfn.IFNA(IF(VLOOKUP(C52,SIFRANT_ODPADKOV,3,FALSE)=\"*\",\"*\",\"\"),\"\")","v":""},{"$f":"IF(ISNA(VLOOKUP(C52,SIFRANT_ODPADKOV,2,FALSE)),\"\",VLOOKUP(C52,SIFRANT_ODPADKOV,2,FALSE))","v":""}]
[null,null,null,"",""]
[null,null,null,"",""]
[null,null,null,{"$f":"_xlfn.IFNA(IF(VLOOKUP(C55,SIFRANT_ODPADKOV,3,FALSE)=\"*\",\"*\",\"\"),\"\")","v":""},{"$f":"IF(ISNA(VLOOKUP(C55,SIFRANT_ODPADKOV,2,FALSE)),\"\",VLOOKUP(C55,SIFRANT_ODPADKOV,2,FALSE))","v":""}]
[null,null,null,"",""]
[null,null,null,"",""]
[null,null,null,{"$f":"_xlfn.IFNA(IF(VLOOKUP(C58,SIFRANT_ODPADKOV,3,FALSE)=\"*\",\"*\",\"\"),\"\")","v":""},{"$f":"IF(ISNA(VLOOKUP(C58,SIFRANT_ODPADKOV,2,FALSE)),\"\",VLOOKUP(C58,SIFRANT_ODPADKOV,2,FALSE))","v":""}]
[null,null,null,"",""]
[null,null,null,"",""]
[]
[]
["Št. Vrstic:",3]

{"sheet":"4_OVD","index":10,"n_rows":14,"n_cols":3,"rows_kept":14,"cut":false,"hidden":false,"merged":[[1,1,1,2],[3,1,3,2],[4,1,4,2],[8,1,8,2]]}
[]
[null,"4. Okoljevarstveno dovoljenje za drugo napravo"]
[]
[null,"Skladno z dvanajstim odstavkom 25. člena ZVO-2 mora pravna ali fizična oseba, ki ima odpadke v fizični posesti, pridobiti tudi okoljevarstveno dovoljenje za napravo iz 126. člena tega zakona (v nadaljevanju: OVD), če se predhodno skladiščenje odpadkov pri zbiralcu odpadkov uvršča med naprave, ki povzročajo emisije snovi v zrak, ali če zaradi odpadkov, ki jih ima zbiralec v fizični posesti, nastajajo odpadne industrijske vode kot posledica padavin, ki padajo na onesnažene talne površine ali odpadke in jih izpirajo ali se iz njih izcejajo. V tem primeru mora pravna ali fizična oseba pridobiti pravnomočno okoljevarstveno dovoljenje pred pridobitvijo odločbe o dovolitvi opravljanja priglašene dejavnosti."]
[null,"Skladno s 6. točko prvega odstavka 259. člena ZVO-2 se zbiralca kaznuje (z globo od 75.000 do 125.000 EUR za pravno osebo oziroma  50.000 do 75.000 eurov za s.p.), če opravlja dejavnost zbiranja odpadkov in nima dovoljenja za napravo iz 126. člena tega zakona, če zaradi izvajanja dejavnosti zbiranja odpadkov nastajajo odpadne industrijske vode kot posledica padavin, ki padajo na onesnažene talne površine ali odpadke, in jih izpirajo ali se iz njih izcejajo, ali če se predhodno skladiščenje določenih vrst odpadkov uvršča med naprave, ki povzročajo emisije snovi v zrak (dvanajsti odstavek 25. člena)."]
[]
[null,"Opredelite se do tega, ali potrebujete OVD zaradi nastajanja odpadne industrijske vode, oziroma ker se predhodno skladiščenje odpadkov, ki ga nameravate izvajati, uvršča med naprave, ki povzročajo emisije snovi v zrak (na desni izberite DA ali NE)."]
[]
[null,"V kolikor niste prepričani, ali potrebujete OVD, prosimo, odgovorite na spodnja vprašanja."]
[]
[null,"Vprašanje","Odgovor"]
[null,"Ali se odpadki predhodno skladiščijo na nepokritih površinah?"]
[null,"Ali se odpadki pretovarjajo (nakladajo/razkladajo) ali pregledujejo (vhodna kontrola in izločanje, itd.) na nepokritih površinah? "]
[null,"Ali se vaša naprava za predhodno skladiščenje odpadkov uvršča v katero izmed skupin naprav pod št. 8 v Prilogi 4 Uredbe o emisiji snovi v zrak iz nepremičnih virov onesnaževanja?"]

{"sheet":"obvezne_priloge","index":11,"n_rows":7,"n_cols":4,"rows_kept":7,"cut":false,"hidden":false,"merged":[[1,1,1,2]]}
[]
[null,"5. Priloge k vlogi - obvezna dokazila"]
[]
[null,"Naziv priloge                                                                                                                                                                                                                                                                                                                                                          ","Priloga je priložena","ID iz ODP_SIFRANT_PRILOG"]
[null,"1. Dokazilo o lastništvu zbirnega centra, vključno z njihovim zemljiščem (dokazila morajo biti priložena za vsak posamezni zbirni center), razen za izvajalce obvezne občinske ali državne gospodarske javne službe zbiranja določenih vrst odpadkov",null,89]
[null,"2. Dokazilo o lastništvu sredstev in opreme za prevzem odpadkov in njihov prevoz"]
[null,"3. Akt občine ali Vlade, s katerim je vlagatelj določen za izvajalca obvezne občinske oziroma državne gospodarske javne službe zbiranja določenih vrst komunalnih odpadkov (v primeru, da je vlagatelj  izvajalec obvezne občinske ali državne gospodarske javne službe)",null,70]

{"sheet":"5_druga_dokazila","index":12,"n_rows":33,"n_cols":3,"rows_kept":33,"cut":false,"hidden":false,"merged":[[1,1,1,2]]}
[]
[null,"5. Druga dokazila"]
[]
[null,"Zap.št. zbirnega centra","Dokazilo (naziv dokumenta, št. dokumenta, datuma izdaje, izdajatelja, itd.)"]
[]
[]
[]
[]
[]
[]
[]
[]
[]
[]
[]
[]
[]
[]
[]
[]
[]
[]
[]
[]
[]
[]
[]
[]
[]
[]
[]
[]
["Št. vrstic:",5]

{"sheet":"up_taksa","index":13,"n_rows":21,"n_cols":18,"rows_kept":21,"cut":false,"hidden":false,"merged":[[14,9,14,12],[20,2,20,5],[20,7,20,8],[1,1,1,13],[3,1,3,13],[5,1,5,13],[9,1,9,4],[12,9,12,12],[11,1,11,4],[10,2,10,4]]}
[]
[null,"Upravna taksa:",null,null,null,null,null,null,null,null,null,null,null,null,null,null,"V kolikor se upravna taksa plača na podračun Ministrstva za okolje, podnebje in energijo, se znesek upravne takse - državne (namen plačila) nakaže na račun št. 0110-0100-0315-637, referenca 11 25500-7111002-35457","."]
[null,null,null,null,null,null,null,null,null,null,null,null,null,null,null,null,{"$f":"MID(YEAR(TODAY()),2,4)","v":"023"},"."]
[null,"a vlogo je potrebno v skladu s tar.št. 1 in št. 3 taksne tarife Zakona o upravnih taksah (Uradni list RS, št. 106/10-UPB, 14/15-ZUUJFO, 84/15-ZZelP-J, 32/16, 30/18-ZKZaš in 189/20-ZFRO) plačati upravno takso v višini 22,60 EUR. Upravno takso se plača v gotovini ali z drugim veljavnim plačilnim instrumentom in o plačilu predloži ustrezno potrdilo."]
[]
[null,{"$f":"Q2&Q3&\".\"","v":"V kolikor se upravna taksa plača na podračun Ministrstva za okolje, podnebje in energijo, se znesek upravne takse - državne (namen plačila) nakaže na račun št. 0110-0100-0315-637, referenca 11 25500-7111002-35457023."}]
[]
[]
[]
[null,"vlogo pripravil-a:"]
[]
[]
[null,null,null,null,null,null,null,null,null,"podpis zakonitega zastopnika ali pooblaščenca"]
[]
[]
[]
[]
[]
[]
[]
[null,"V/Na",null,null,null,null," , dne"]

{"sheet":"sifrant_odpadkov","index":14,"n_rows":843,"n_cols":4,"rows_kept":843,"cut":false,"hidden":true,"merged":[]}
["Številka odpadka ","Naziv odpadka ","Nevarnost odpadka","ID"]
["01 01 01","Odpadki iz pridobivanja kovinskih mineralnih surovin","A",1410]
["01 01 02","Odpadki iz pridobivanja nekovinskih mineralnih surovin","B",1411]
["01 03 04","Kisli ostanki iz predelave sulfidne rude","*",1117]
["01 03 05","Drugi ostanki, ki vsebujejo nevarne snovi","*",1118]
["01 03 06","Ostanki, ki niso navedeni v 01 03 04 in 01 03 05",null,1412]
["01 03 07","Drugi odpadki, ki vsebujejo nevarne snovi, iz fizikalne in kemične predelave kovinskih mineralnih surovin","*",1119]
["01 03 08","Prašni in praškasti odpadki, ki niso navedeni v 01 03 07",null,1413]
["01 03 09","Rdeče blato iz proizvodnje glinice, ki ni navedeno v 01 03 10",null,1414]
["01 03 10","Rdeče blato iz proizvodnje glinice, ki vsebuje druge nevarne snovi, kot so odpadki, ki so navedeni v 01 03 07","*",1951]
["01 03 99","Odpadki, ki niso navedeni drugje",null,1415]
["01 04 07","Odpadki, ki vsebujejo nevarne snovi, iz fizikalne in kemijske predelave nekovinskih mineralnih surovin","*",1120]
["01 04 08","Odpadna gramoz in drobir, ki nista navedena v 01 04 07",null,1416]
["01 04 09","Odpadni pesek in gline",null,1417]
["01 04 10","Prašni in praškasti odpadki, ki niso navedeni v 01 04 07",null,1418]
["01 04 11","Odpadki iz predelave kalijeve in kamene soli, ki niso navedeni v 01 04 07",null,1419]
["01 04 12","Ostanki in drugi odpadki iz pranja in čiščenja mineralnih surovin, ki niso navedeni v 01 04 07 in 01 04 11",null,1420]
["01 04 13","Odpadki iz rezanja in žaganja kamna, ki niso navedeni v 01 04 07",null,1421]
["01 04 99","Odpadki, ki niso navedeni drugje",null,1422]
["01 05 04","Mulji in odpadki iz vrtanja sladkovodnih vrtin",null,1423]
["01 05 05","Mulji in odpadki iz vrtanja, ki vsebujejo olja","*",1121]
["01 05 06","Mulji in drugi odpadki iz vrtanja, ki vsebujejo nevarne snovi","*",1122]
["01 05 07","Mulji in odpadki iz vrtanja, ki vsebujejo barit in niso navedeni v 01 05 05 in 01 05 06",null,1424]
["01 05 08","Mulji in odpadki iz vrtanja, ki vsebujejo klorid in niso navedeni v 01 05 05 in 01 05 06",null,1425]
["01 05 99","Odpadki, ki niso navedeni drugje",null,1426]
["02 01 01","Mulji iz pranja in čiščenja",null,1427]
["02 01 02","Odpadna živalska tkiva",null,1428]
["02 01 03","Odpadna rastlinska tkiva",null,1429]
["02 01 04","Odpadna plastika (razen embalaže)",null,1430]
["02 01 06","Živalski iztrebki, urin in gnoj (vključno z onesnaženo slamo) ter ločeno zbrane odpadne vode, obdelane zunaj kraja nastanka",null,1431]
["02 01 07","Odpadki iz gozdarstva",null,1432]
["02 01 08","Agrokemični odpadki, ki vsebujejo nevarne snovi","*",1123]
["02 01 09","Agrokemični odpadki, ki niso navedeni v 02 01 08",null,1491]
["02 01 10","Odpadne kovine",null,1492]
["02 01 99","Odpadki, ki niso navedeni drugje",null,1493]
["02 02 01","Mulji iz pranja in čiščenja",null,1494]
["02 02 02","Odpadna živalska tkiva",null,1495]
["02 02 03","Snovi, neprimerne za uživanje ali predelavo",null,1496]
["02 02 04","Blato iz čiščenja odpadnih voda na kraju nastanka",null,1497]
["02 02 99","Odpadki, ki niso navedeni drugje",null,1498]
["02 03 01","Mulji iz pranja, čiščenja, lupljenja, centrifugiranja in ločevanja",null,1499]
["02 03 02","Odpadni konzervansi",null,1500]
["02 03 03","Odpadki iz ekstrakcij s topili",null,1501]
["02 03 04","Snovi, neprimerne za uživanje ali predelavo",null,1502]
["02 03 05","Blato iz čiščenja odpadnih voda na kraju nastanka",null,1503]
["02 03 99","Odpadki, ki niso navedeni drugje",null,1504]
["02 04 01","Zemlja iz čiščenja in pranja sladkorne pese",null,1505]
["02 04 02","Kalcijev karbonat, ki ne ustreza specifikaciji",null,1506]
["02 04 03","Blato iz čiščenja odpadnih voda na kraju nastanka",null,1507]
["02 04 99","Odpadki, ki niso navedeni drugje",null,1508]
["02 05 01","Snovi, neprimerne za uživanje ali predelavo",null,1862]
["02 05 02","Blato iz čiščenja odpadnih voda na kraju nastanka",null,1863]
["02 05 99","Odpadki, ki niso navedeni drugje",null,1864]
["02 06 01","Snovi, neprimerne za uživanje ali predelavo",null,1865]
["02 06 02","Odpadni konzervansi",null,1866]
["02 06 03","Blato iz čiščenja odpadnih voda na kraju nastanka",null,1867]
["02 06 99","Odpadki, ki niso navedeni drugje",null,1868]
["02 07 01","Odpadki iz pranja, čiščenja in mehanskega drobljenja surovin",null,1869]
["02 07 02","Odpadki iz destilacije žganih pijač",null,1870]
["02 07 03","Odpadki iz kemijske obdelave",null,1871]
["02 07 04","Snovi, neprimerne za uživanje ali predelavo",null,1872]
["02 07 05","Blato iz čiščenja odpadnih voda na kraju nastanka",null,1873]
["02 07 99","Odpadki, ki niso navedeni drugje",null,1874]
["03 01 01","Odpadna lubje in pluta",null,1875]
["03 01 04","Žagovina, oblanci, odrezki, les, iverne plošče in furnir, ki vsebujejo nevarne snovi","*",1124]
["03 01 05","Žagovina, oblanci, odrezki, les, iverne plošče in furnir, ki niso navedeni v 03 01 04",null,1509]
["03 01 99","Odpadki, ki niso navedeni drugje",null,1510]
["03 02 01","Nehalogenirana organska sredstva za zaščito lesa","*",1125]
["03 02 02","Klorirana organska sredstva za zaščito lesa","*",1126]
["03 02 03","Organokovinska sredstva za zaščito lesa","*",1127]
["03 02 04","Anorganska sredstva za zaščito lesa","*",1128]
["03 02 05","Druga sredstva za zaščito lesa, ki vsebujejo nevarne snovi","*",1129]
["03 02 99","Sredstva za zaščito lesa, ki niso navedena drugje",null,1511]
["03 03 01","Odpadna lubje in les",null,1512]
["03 03 02","Mulji zelene lužnice (iz obdelave črne lužnice)",null,1513]
["03 03 05","Mulji iz odstranjevanja tiskarske barve (de-inking) pri recikliranju papirja",null,1514]
["03 03 07","Mehansko ločeni rejekti iz razpuščanja odpadnega papirja ter kartona in lepenke",null,1515]
["03 03 08","Odpadki iz sortiranja papirja ter kartona in lepenke, namenjenih za recikliranje",null,1516]
["03 03 09","Odpadni apneni mulj",null,1517]
["03 03 10","Vlakninski rejekti, mulji vlaknin, polnil in premazov iz mehanske separacije",null,1518]
["03 03 11","Blato iz čiščenja odpadnih voda na kraju nastanka, ki ni navedeno v 03 03 10",null,1519]
["03 03 99","Odpadki, ki niso navedeni drugje",null,1520]
["04 01 01","Mezdra in odpadni luženi cepljenec",null,1521]
["04 01 02","Odpadki iz luženja",null,1522]
["04 01 03","Odpadki iz razmaščevanja, ki vsebujejo topila, brez tekoče faze","*",1130]
["04 01 04","Strojilna kopel, ki vsebuje krom",null,1523]
["04 01 05","Strojilna kopel, ki ne vsebuje kroma",null,1524]
["04 01 06","Blato, ki vsebuje krom, zlasti iz čiščenja odpadnih voda na kraju nastanka",null,1525]
["04 01 07","Blato, ki ne vsebuje kroma, zlasti iz čiščenja odpadnih voda na kraju nastanka",null,1526]
["04 01 08","Odpadno strojeno usnje, ki vsebuje krom (ostružki, odrezki, prah iz brušenja)",null,1527]
["04 01 09","Odpadki iz oplemenitenja in dodelave krzna in usnja",null,1528]
["04 01 99","Odpadki, ki niso navedeni drugje",null,1529]
["04 02 09","Odpadni sestavljeni (kompozitnih) materiali (impregniran tekstil, elastomer, plastomer)",null,1530]
["04 02 10","Organske snovi iz naravnih sestavin (npr. maščoba, vosek)",null,1531]
["04 02 14","Odpadki iz dodelave, ki vsebujejo organska topila","*",1131]
["04 02 15","Odpadki iz dodelave, ki niso navedeni v 04 02 14",null,1663]
["04 02 16","Barvila in pigmenti, ki vsebujejo nevarne snovi","*",1310]
["04 02 17","Barvila in pigmenti, ki niso navedeni v 04 02 16",null,1664]
["04 02 19","Blato, ki vsebuje nevarne snovi, iz čiščenja odpadnih voda na kraju nastanka","*",1311]
["04 02 20","Blato iz čiščenja odpadnih voda na kraju nastanka, ki ni navedeno v 04 02 19",null,1665]
["04 02 21","Odpadki iz neobdelanih tekstilnih vlaken",null,1666]
["04 02 22","Odpadki iz obdelanih tekstilnih vlaken",null,1667]
["04 02 99","Odpadki, ki niso navedeni drugje",null,1668]
["05 01 02","Mulji iz razsoljevanja","*",973]
["05 01 03","Mulji z dna rezervoarjev","*",974]
["05 01 04","Kisli alkilni mulji","*",975]
["05 01 05","Razlita nafta","*",976]
["05 01 06","Zaoljeni mulji iz postopkov vzdrževanja obrata ali opreme","*",977]
["05 01 07","Kisli katrani","*",978]
["05 01 08","Drugi katrani","*",979]
["05 01 09","Blato, ki vsebuje nevarne snovi, iz čiščenja odpadnih voda na kraju nastanka","*",980]
["05 01 10","Blato iz čiščenja odpadnih voda na kraju nastanka, ki ni navedeno v 05 01 09",null,1669]
["05 01 11","Odpadki iz čiščenja goriv z lugi","*",981]
["05 01 12","Nafta, ki vsebuje kisline","*",982]
["05 01 13","Mulji iz grelnikov kotlovne vode",null,1670]
["05 01 14","Odpadki iz hladilnih kolon",null,1671]
["05 01 15","Izrabljene filtrirne gline","*",983]
["05 01 16","Odpadki, ki vsebujejo žveplo, iz razžveplanja naftnih derivatov",null,1672]
["05 01 17","Bitumen",null,1673]
["05 01 99","Odpadki, ki niso navedeni drugje",null,1674]
["05 06 01","Kisli katrani","*",984]
["05 06 03","Drugi katrani","*",985]
["05 06 04","Odpadki iz hladilnih kolon",null,1675]
["05 06 99","Odpadki, ki niso navedeni drugje",null,1676]
["05 07 01","Odpadki, ki vsebujejo živo srebro","*",986]
["05 07 02","Odpadki, ki vsebujejo žveplo",null,1677]
["05 07 99","Odpadki, ki niso navedeni drugje",null,1678]
["06 01 01","Žveplova in žveplasta kislina","*",987]
["06 01 02","Klorovodikova kislina","*",988]
["06 01 03","Fluorovodikova kislina","*",989]
["06 01 04","Fosforjeva in fosforasta kislina","*",990]
["06 01 05","Dušikova in dušikasta kislina","*",991]
["06 01 06","Druge kisline","*",992]
["06 01 99","Odpadki, ki niso navedeni drugje",null,1679]
["06 02 01","Kalcijev hidroksid","*",993]
["06 02 03","Amonijev hidroksid","*",994]
["06 02 04","Natrijev in kalijev hidroksid","*",995]
["06 02 05","Druge baze (lugi)","*",996]
["06 02 99","Odpadki, ki niso navedeni drugje",null,1680]
["06 03 11","Trdne soli in raztopine, ki vsebujejo cianide","*",997]
["06 03 13","Trdne soli in raztopine, ki vsebujejo težke kovine","*",998]
["06 03 14","Trdne soli in raztopine, ki niso navedeni v 06 03 11 in 06 03 13",null,1681]
["06 03 15","Kovinski oksidi, ki vsebujejo težke kovine","*",999]
["06 03 16","Kovinski oksidi, ki niso navedeni v 06 03 15",null,1682]
["06 03 99","Odpadki, ki niso navedeni drugje",null,1683]
["06 04 03","Odpadki, ki vsebujejo arzen","*",1000]
["06 04 04","Odpadki, ki vsebujejo živo srebro","*",1001]
["06 04 05","Odpadki, ki vsebujejo druge težke kovine","*",1002]
["06 04 99","Odpadki, ki niso navedeni drugje",null,1684]
["06 05 02","Blato, ki vsebuje nevarne snovi, iz čiščenja odpadnih voda na kraju nastanka","*",1003]
["06 05 03","Blato iz čiščenja odpadnih voda na kraju nastanka, ki ni navedeno v 06 05 02",null,1685]
["06 06 02","Odpadki, ki vsebujejo nevarne sulfide","*",1004]
["06 06 03","Odpadki, ki vsebujejo sulfide in niso navedeni v 06 06 02",null,1686]
["06 06 99","Odpadki, ki niso navedeni drugje",null,1687]
["06 07 01","Elektrolizni odpadki, ki vsebujejo azbest","*",1005]
["06 07 02","Aktivno oglje iz proizvodnje klora","*",1006]
["06 07 03","Mulj barijevega sulfata, ki vsebuje živo srebro","*",1007]
["06 07 04","Raztopine in kisline, npr. kontaktna kislina","*",1008]
["06 07 99","Odpadki, ki niso navedeni drugje",null,1688]
["06 08 02","Odpadki, ki vsebujejo nevarne klorosilane","*",1009]
["06 08 99","Odpadki, ki niso navedeni drugje",null,1689]
["06 09 02","Fosforna žlindra",null,1690]
["06 09 03","Odpadki iz reakcij na osnovi kalcija, ki vsebujejo nevarne snovi ali pa so onesnaženi z njimi","*",1010]
["06 09 04","Odpadki iz reakcij na osnovi kalcija, ki niso navedeni v 06 09 03",null,1691]
["06 09 99","Odpadki, ki niso navedeni drugje",null,1692]
["06 10 02","Odpadki, ki vsebujejo nevarne snovi","*",1011]
["06 10 99","Odpadki, ki niso navedeni drugje",null,1693]
["06 11 01","Odpadki iz reakcij na osnovi kalcija iz proizvodnje titanovega dioksida",null,1694]
["06 11 99","Odpadki, ki niso navedeni drugje",null,1695]
["06 13 01","Anorganska sredstva za zaščito rastlin, sredstva za zaščito lesa in drugi biocidi","*",1012]
["06 13 02","Izrabljeno aktivno oglje (razen 06 07 02)","*",1013]
["06 13 03","Industrijske saje (ogljik)",null,1696]
["06 13 04","Odpadki iz predelave azbesta","*",1014]
["06 13 05","Dimniške saje","*",1015]
["06 13 99","Odpadki, ki niso navedeni drugje",null,1697]
["07 01 01","Pralne tekočine na vodni osnovi in matične lužnice","*",1016]
["07 01 03","Halogenirana organska topila, pralne tekočine in matične lužnice","*",1017]
["07 01 04","Druga organska topila, pralne tekočine in matične lužnice","*",1018]
["07 01 07","Halogenirani ostanki iz destilacij in reakcij","*",1019]
["07 01 08","Drugi ostanki iz destilacij in reakcij","*",1020]
["07 01 09","Halogenirane filtrne pogače in izrabljeni absorbenti","*",1021]
["07 01 10","Druge filtrne pogače in izrabljeni absorbenti","*",1022]
["07 01 11","Blato, ki vsebuje nevarne snovi, iz čiščenja odpadnih voda na kraju nastanka","*",1023]
["07 01 12","Blato iz čiščenja odpadnih voda na kraju nastanka, ki ni navedeno v 07 01 11",null,1698]
["07 01 99","Odpadki, ki niso navedeni drugje",null,1699]
["07 02 01","Pralne tekočine na vodni osnovi in matične lužnice","*",1024]
["07 02 03","Halogenirana organska topila, pralne tekočine in matične lužnice","*",1025]
["07 02 04","Druga organska topila, pralne tekočine in matične lužnice","*",1026]
["07 02 07","Halogenirani ostanki iz destilacij in reakcij","*",1027]
["07 02 08","Drugi ostanki iz destilacij in reakcij","*",1028]
["07 02 09","Halogenirane filtrne pogače in izrabljeni absorbenti","*",1029]
["07 02 10","Druge filtrne pogače in izrabljeni absorbenti","*",1030]
["07 02 11","Blato, ki vsebuje nevarne snovi, iz čiščenja odpadnih voda na kraju nastanka","*",1031]
["07 02 12","Blato iz čiščenja odpadnih voda na kraju nastanka, ki niso navedeno v 07 02 11",null,1700]
["07 02 13","Odpadna plastika",null,1701]
["07 02 14","Odpadki aditivov, ki vsebujejo nevarne snovi","*",1032]
["07 02 15","Odpadki aditivov, ki niso navedeni v 07 02 14",null,1702]
["07 02 16","Odpadki, ki vsebujejo nevarne silikone","*",1033]
["07 02 17","Odpadki, ki vsebujejo silikone in niso navedeni v 07 02 16",null,1861]
["07 02 99","Odpadki, ki niso navedeni drugje",null,1703]
["07 03 01","Pralne tekočine na vodni osnovi in matične lužnice","*",1034]
["07 03 03","Halogenirana organska topila, pralne tekočine in matične lužnice","*",1035]
["07 03 04","Druga organska topila, pralne tekočine in matične lužnice","*",1036]
["07 03 07","Halogenirani ostanki iz destilacij in reakcij","*",1037]
["07 03 08","Drugi ostanki iz destilacij in reakcij","*",1038]
["07 03 09","Halogenirane filtrne pogače in izrabljeni absorbenti","*",1039]
["07 03 10","Druge filtrne pogače in izrabljeni absorbenti","*",1040]
["07 03 11","Blato, ki vsebuje nevarne snovi, iz čiščenja odpadnih voda na kraju nastanka","*",1041]
["07 03 12","Blato iz čiščenja odpadnih voda na kraju nastanka, ki ni navedeno v 07 03 11",null,1704]
["07 03 99","Odpadki, ki niso navedeni drugje",null,1705]
["07 04 01","Pralne tekočine na vodni osnovi in matične lužnice","*",1042]
["07 04 03","Halogenirana organska topila, pralne tekočine in matične lužnice","*",1043]
["07 04 04","Druga organska topila, pralne tekočine in matične lužnice","*",972]
["07 04 07","Halogenirani ostanki iz destilacij in reakcij","*",1045]
["07 04 08","Drugi ostanki iz destilacij in reakcij","*",1046]
["07 04 09","Halogenirane filtrne pogače in izrabljeni absorbenti","*",1047]
["07 04 10","Druge filtrne pogače in izrabljeni absorbenti","*",1182]
["07 04 11","Blato, ki vsebuje nevarne snovi, iz čiščenja odpadnih voda na kraju nastanka","*",1183]
["07 04 12","Blato iz čiščenja odpadnih voda na kraju nastanka, ki ni navedeno v 07 04 11",null,1706]
["07 04 13","Trdni odpadki, ki vsebujejo nevarne snovi","*",1184]
["07 04 99","Odpadki, ki niso navedeni drugje",null,1707]
["07 05 01","Pralne tekočine na vodni osnovi in matične lužnice","*",1185]
["07 05 03","Halogenirana organska topila, pralne tekočine in matične lužnice","*",1186]
["07 05 04","Druga organska topila, pralne tekočine in matične lužnice","*",1187]
["07 05 07","Halogenirani ostanki iz destilacij in reakcij","*",1188]
["07 05 08","Drugi ostanki iz destilacij in reakcij","*",1189]
["07 05 09","Halogenirane filtrne pogače in izrabljeni absorbenti","*",1190]
["07 05 10","Druge filtrne pogače in izrabljeni absorbenti","*",1191]
["07 05 11","Blato, ki vsebuje nevarne snovi, iz čiščenja odpadnih voda na kraju nastanka","*",1192]
["07 05 12","Blato iz čiščenja odpadnih voda na kraju nastanka, ki ni navedeno v 07 05 11",null,1708]
["07 05 13","Trdni odpadki, ki vsebujejo nevarne snovi","*",1193]
["07 05 14","Trdni odpadki, ki niso navedeni v 07 05 13",null,1709]
["07 05 99","Odpadki, ki niso navedeni drugje",null,1710]
["07 06 01","Pralne tekočine na vodni osnovi in matične lužnice","*",1194]
["07 06 03","Halogenirana organska topila, pralne tekočine in matične lužnice","*",1195]
["07 06 04","Druga organska topila, pralne tekočine in matične lužnice","*",1196]
["07 06 07","Halogenirani ostanki iz destilacij in reakcij","*",1197]
["07 06 08","Drugi ostanki iz destilacij in reakcij","*",1198]
["07 06 09","Halogenirane filtrne pogače in izrabljeni absorbenti","*",1199]
["07 06 10","Druge filtrne pogače in izrabljeni absorbenti","*",1200]
["07 06 11","Blato, ki vsebuje nevarne snovi, iz čiščenja odpadnih voda na kraju nastanka snovi","*",1201]
["07 06 12","Blato iz čiščenja odpadnih voda na kraju nastanka, ki ni navedeno v 07 06 11",null,1711]
["07 06 99","Odpadki, ki niso navedeni drugje",null,1712]
["07 07 01","Pralne tekočine na vodni osnovi in matične lužnice","*",1202]
["07 07 03","Halogenirana organska topila, pralne tekočine in matične lužnice","*",1203]
["07 07 04","Druga organska topila, pralne tekočine in matične lužnice","*",1204]
["07 07 07","Halogenirani ostanki iz destilacij in reakcij","*",1205]
["07 07 08","Drugi ostanki iz destilacij in reakcij","*",1206]
["07 07 09","Halogenirane filtrne pogače in izrabljeni absorbenti","*",1207]
["07 07 10","Druge filtrne pogače in izrabljeni absorbenti","*",1208]
["07 07 11","Blato, ki vsebuje nevarne snovi, iz čiščenja odpadnih voda na kraju nastanka snovi","*",1209]
["07 07 12","Blato iz čiščenja odpadnih voda na kraju nastanka, ki ni navedeno v 07 07 11",null,1713]
["07 07 99","Odpadki, ki niso navedeni drugje",null,1714]
["08 01 11","Odpadne barve in laki, ki vsebujejo organska topila ali druge nevarne snovi","*",1210]
["08 01 12","Odpadne barve in laki, ki niso navedeni v 08 01 11",null,1715]
["08 01 13","Mulji barv ali lakov, ki vsebujejo organska topila ali druge nevarne snovi","*",1211]
["08 01 14","Mulji barv ali lakov, ki niso navedeni v 08 01 13",null,1716]
["08 01 15","Vodni mulji, ki vsebujejo barve ali lake, ki vsebujejo organska topila ali druge nevarne snovi","*",1212]
["08 01 16","Vodni mulji, ki vsebujejo barve ali lake in niso navedeni v 08 01 15",null,1717]
["08 01 17","Odpadki iz odstranjevanja barv ali lakov, ki vsebujejo organska topila ali druge nevarne snovi","*",1213]
["08 01 18","Odpadki iz odstranjevanja barv ali lakov, ki niso navedeni v 08 01 17",null,1718]
["08 01 19","Vodne suspenzije, ki vsebujejo barve ali lake, ki vsebujejo organska topila ali druge nevarne snovi","*",1214]
["08 01 20","Vodne suspenzije, ki vsebujejo barve ali lake, ki niso navedeni v 08 01 19",null,1719]
["08 01 21","Odpadki sredstev za odstranjevanje barv ali lakov","*",1215]
["08 01 99","Odpadki, ki niso navedeni drugje",null,1720]
["08 02 01","Odpadna praškasta sredstva za površinsko zaščito",null,1734]
["08 02 02","Vodni mulji, ki vsebujejo keramične materiale",null,1735]
["08 02 03","Vodne suspenzije, ki vsebujejo keramične materiale",null,1736]
["08 02 99","Odpadki, ki niso navedeni drugje",null,1737]
["08 03 07","Vodni mulji, ki vsebujejo tiskarske barve",null,1738]
["08 03 08","Odpadne vodne raztopine, ki vsebujejo tiskarske barve",null,1739]
["08 03 12","Odpadne tiskarske barve, ki vsebujejo nevarne snovi","*",1216]
["08 03 13","Odpadne tiskarske barve, ki niso navedene v 08 03 12",null,1740]
["08 03 14","Mulji tiskarskih barv, ki vsebujejo nevarne snovi","*",1217]
["08 03 15","Mulji tiskarskih barv, ki niso navedeni v 08 03 14",null,1741]
["08 03 16","Odpadne raztopine za jedkanje","*",1218]
["08 03 17","Odpadni tiskarski tonerji, ki vsebujejo nevarne snovi","*",1219]
["08 03 18","Odpadni tiskarski tonerji, ki niso navedeni v 08 03 17",null,1742]
["08 03 19","Disperzijsko olje","*",1220]
["08 03 99","Odpadki, ki niso navedeni drugje",null,1743]
["08 04 09","Odpadna lepila in tesnilne mase, ki vsebujejo organska topila ali druge nevarne snovi","*",1221]
["08 04 10","Odpadna lepila in tesnilne mase, ki niso navedeni v 08 04 09",null,1744]
["08 04 11","Mulji lepil in tesnilnih mas, ki vsebujejo organska topila ali druge nevarne snovi","*",1222]
["08 04 12","Mulji lepil in tesnilnih mas, ki niso navedeni v 08 04 11",null,1745]
["08 04 13","Vodni mulji, ki vsebujejo lepila ali tesnilne mase, ki vsebujejo organska topila ali druge nevarne snovi","*",1223]
["08 04 14","Vodni mulji, ki vsebujejo lepila ali tesnilne mase, ki niso navedeni v 08 04 13",null,1746]
["08 04 15","Odpadne vodne raztopine, ki vsebujejo lepila ali tesnilne mase, ki vsebujejo organska topila ali druge nevarne snovi","*",1224]
["08 04 16","Odpadne vodne raztopine, ki vsebujejo lepila ali tesnilne mase, ki niso navedeni v 08 04 15",null,1747]
["08 04 17","Smolno olje (kolofonija)","*",1225]
["08 04 99","Odpadki, ki niso navedeni drugje",null,1748]
["08 05 01","Odpadni izocianati","*",1226]
["09 01 01","Raztopine razvijalcev in aktivatorjev na vodni osnovi","*",1227]
["09 01 02","Raztopine razvijalcev za ofsetne plošče na vodni osnovi","*",1228]
["09 01 03","Raztopine razvijalcev na osnovi topil","*",1229]
["09 01 04","Fiksirne raztopine","*",1230]
["09 01 05","Belilne in belilno-fiksirne raztopine","*",1231]
["09 01 06","Odpadki, ki vsebujejo srebro, iz obdelave fotografskih odpadkov na kraju nastanka","*",1232]
["09 01 07","Filmi in fotografski papir, ki vsebujejo srebro ali srebrove spojine",null,1749]
["09 01 08","Filmi in fotografski papir, ki ne vsebujejo srebra ali srebrovih spojin",null,1750]
["09 01 10","Fotoaparati za enkratno uporabo, brez baterij",null,1751]
["09 01 11","Fotoaparati za enkratno uporabo, z baterijami, navedenimi v 16 06 01, 16 06 02 ali 16 06 03","*",1233]
["09 01 12","Fotoaparati za enkratno uporabo, z baterijami, ki niso navedene v 09 01 11",null,1752]
["09 01 13","Odpadne vodne raztopine iz regeneracije srebra na kraju nastanka, ki niso navedene v 09 01 06","*",1234]
["09 01 99","Odpadki, ki niso navedeni drugje",null,1753]
["10 01 01","Pepel, žlindra in kotlovski prah (razen kotlovskega prahu, ki je naveden v 10 01 04)",null,1754]
["10 01 02","Elektrofiltrski pepel iz kurilnih naprav na premog",null,1755]
["10 01 03","Elektrofiltrski pepel iz kurilnih naprav na šoto in neobdelan les",null,1756]
["10 01 04","Elektrofiltrski pepel in kotlovski prah iz kurilnih naprav na kurilno olje","*",1235]
["10 01 05","Trdni odpadki iz razžveplanja dimnih plinov z reakcijami na osnovi kalcija",null,1757]
["10 01 07","Muljasti odpadki iz razžveplanja dimnih plinov z reakcijami na osnovi kalcija",null,1758]
["10 01 09","Žveplova kislina","*",1236]
["10 01 13","Elektrofiltrski pepel iz emulgiranih ogljikovodikov, uporabljenih kot gorivo","*",1237]
["10 01 14","Pepel, žlindra in kotlovski prah, ki vsebujejo nevarne snovi, iz naprav za sosežig","*",1238]
["10 01 15","Pepel, žlindra in kotlovski prah iz naprav za sosežig, ki niso navedeni v 10 01 14",null,1759]
["10 01 16","Elektrofiltrski pepel, ki vsebuje nevarne snovi, iz naprav za sosežig","*",1239]
["10 01 17","Elektrofiltrski pepel iz naprav za sosežig, ki ni naveden v 10 01 16",null,1760]
["10 01 18","Odpadki, ki vsebujejo nevarne snovi, iz čiščenja odpadnih plinov","*",1044]
["10 01 19","Odpadki iz čiščenja odpadnih plinov, ki niso navedeni v 10 01 05, 10 01 07 in 10 01 18",null,1761]
["10 01 20","Blato, ki vsebuje nevarne snovi, iz čiščenja odpadnih voda na kraju nastanka","*",1240]
["10 01 21","Blato iz čiščenja odpadnih voda na kraju nastanka, ki ni navedeno v 10 01 20",null,1762]
["10 01 22","Vodni mulji, ki vsebujejo nevarne snovi, iz čiščenja kotlov","*",1244]
["10 01 23","Vodni mulji iz čiščenja kotlov, ki niso navedeni v 10 01 22",null,1763]
["10 01 24","Peski iz kurišč na lebdeči sloj",null,1764]
["10 01 25","Odpadki iz skladiščenja in priprave goriva v elektrarnah na premog",null,1765]
["10 01 26","Odpadki iz obdelave hladilne vode",null,1766]
["10 01 99","Odpadki, ki niso navedeni drugje",null,1767]
["10 02 01","Odpadki iz predelave žlindre",null,1768]
["10 02 02","Nepredelana žlindra",null,1769]
["10 02 07","Trdni odpadki, ki vsebujejo nevarne snovi, iz čiščenja odpadnih plinov","*",1245]
["10 02 08","Trdni odpadki iz čiščenja odpadnih plinov, ki niso navedeni v 10 02 07",null,1770]
["10 02 10","Valjarniška škaja",null,1771]
["10 02 11","Odpadki iz obdelave hladilne vode, ki vsebujejo olje","*",1048]
["10 02 12","Odpadki iz obdelave hladilne vode, ki niso navedeni v 10 02 11",null,1772]
["10 02 13","Mulji in filtrne pogače, ki vsebujejo nevarne snovi, iz čiščenja odpadnih plinov","*",1049]
["10 02 14","Mulji in filtrne pogače iz čiščenja odpadnih plinov, ki niso navedeni v 10 02 13",null,1773]
["10 02 15","Drugi mulji in filtrne pogače",null,1774]
["10 02 99","Odpadki, ki niso navedeni drugje",null,1775]
["10 03 02","Ostanki izrabljenih anod",null,1776]
["10 03 04","Žlindre iz primarnega taljenja","*",1050]
["10 03 05","Odpadna glinica",null,1777]
["10 03 08","Solne žlindre iz sekundarnega taljenja","*",1051]
["10 03 09","Črni posnemki iz sekundarnega taljenja","*",1052]
["10 03 15","Posnemki, ki so vnetljivi ali pri stiku z vodo sproščajo vnetljive pline v nevarnih količinah","*",1053]
["10 03 16","Posnemki, ki niso navedeni v 10 03 15",null,1778]
["10 03 17","Odpadki iz proizvodnje anod, ki vsebujejo katran","*",1054]
["10 03 18","Odpadki iz proizvodnje anod, ki vsebujejo ogljik, in niso navedeni v 10 03 17",null,1779]
["10 03 19","Prah dimnih plinov, ki vsebuje nevarne snovi","*",1055]
["10 03 20","Prah dimnih plinov, ki ni naveden v 10 03 19",null,1780]
["10 03 21","Drugi delci in prah (vključno s prahom iz krogličnih mlinov), ki vsebujejo nevarne snovi","*",1056]
["10 03 22","Drugi delci in prah (vključno s prahom iz krogličnih mlinov), ki niso navedeni v 10 03 21",null,1781]
["10 03 23","Trdni odpadki iz čiščenja odpadnih plinov, ki vsebujejo nevarne snovi","*",1057]
["10 03 24","Trdni odpadki iz čiščenja odpadnih plinov, ki niso navedeni v 10 03 23",null,1782]
["10 03 25","Mulji in filtrne pogače iz čiščenja odpadnih plinov, ki vsebujejo nevarne snovi","*",1058]
["10 03 26","Mulji in filtrne pogače iz čiščenja odpadnih plinov, ki niso navedeni v 10 03 25",null,1783]
["10 03 27","Odpadki iz obdelave hladilne vode, ki vsebujejo olje","*",1059]
["10 03 28","Odpadki iz obdelave hladilne vode, ki niso navedeni v 10 03 27",null,1784]
["10 03 29","Odpadki iz obdelave solnih žlinder in črnih posnemkov, ki vsebujejo nevarne snovi","*",1060]
["10 03 30","Odpadki iz obdelave solnih žlinder in črnih posnemkov, ki niso navedeni v 10 03 29",null,1785]
["10 03 99","Odpadki, ki niso navedeni drugje",null,1786]
["10 04 01","Žlindra iz primarnega in sekundarnega taljenja","*",1061]
["10 04 02","Posnemki iz primarnega in sekundarnega taljenja","*",1062]
["10 04 03","Kalcijev arzenat","*",1063]
["10 04 04","Prah dimnih plinov","*",1064]
["10 04 05","Drugi delci in prah","*",1065]
["10 04 06","Trdni odpadki iz čiščenja odpadnih plinov","*",1066]
["10 04 07","Mulji in filtrne pogače iz čiščenja odpadnih plinov","*",1067]
["10 04 09","Odpadki iz obdelave hladilne vode, ki vsebujejo olje","*",1068]
["10 04 10","Odpadki iz obdelave hladilne vode, ki niso navedeni v 10 04 09",null,1787]
["10 04 99","Odpadki, ki niso navedeni drugje",null,1788]
["10 05 01","Žlindra iz primarnega in sekundarnega taljenja",null,1789]
["10 05 03","Prah dimnih plinov","*",1069]
["10 05 04","Drugi delci in prah",null,1790]
["10 05 05","Trdni odpadki iz čiščenja odpadnih plinov","*",1070]
["10 05 06","Mulji in filtrne pogače iz čiščenja odpadnih plinov","*",1071]
["10 05 08","Odpadki iz obdelave hladilne vode, ki vsebujejo olje","*",1072]
["10 05 09","Odpadki iz obdelave hladilne vode, ki niso navedeni v 10 05 08",null,1791]
["10 05 10","Posnemki, ki so vnetljivi ali pri stiku z vodo sproščajo vnetljive pline v nevarnih količinah","*",1073]
["10 05 11","Posnemki, ki niso navedeni v 10 05 10",null,1792]
["10 05 99","Odpadki, ki niso navedeni drugje",null,1793]
["10 06 01","Žlindra iz primarnega in sekundarnega taljenja",null,1794]
["10 06 02","Posnemki iz primarnega in sekundarnega taljenja",null,1795]
["10 06 03","Prah dimnih plinov","*",1074]
["10 06 04","Drugi delci in prah",null,1796]
["10 06 06","Trdni odpadki iz čiščenja odpadnih plinov","*",1075]
["10 06 07","Mulji in filtrne pogače iz čiščenja odpadnih plinov","*",1076]
["10 06 09","Odpadki iz obdelave hladilne vode, ki vsebujejo olje","*",1077]
["10 06 10","Odpadki iz obdelave hladilne vode, ki niso navedeni v 10 06 09",null,1797]
["10 06 99","Odpadki, ki niso navedeni drugje",null,1798]
["10 07 01","Žlindra iz primarnega in sekundarnega taljenja",null,1799]
["10 07 02","Posnemki iz primarnega in sekundarnega taljenja",null,1800]
["10 07 03","Trdni odpadki iz čiščenja odpadnih plinov",null,1801]
["10 07 04","Drugi delci in prah",null,1802]
["10 07 05","Mulji in filtrne pogače iz čiščenja odpadnih plinov",null,1803]
["10 07 07","Odpadki iz obdelave hladilne vode, ki vsebujejo olje","*",1078]
["10 07 08","Odpadki iz obdelave hladilne vode, ki niso navedeni v 10 07 07",null,1804]
["10 07 99","Odpadki, ki niso navedeni drugje",null,1805]
["10 08 04","Delci in prah",null,1806]
["10 08 08","Solna žlindra iz primarnega in sekundarnega taljenja","*",1079]
["10 08 09","Druge žlindre",null,1807]
["10 08 10","Posnemki, ki so vnetljivi ali pri stiku z vodo sproščajo vnetljive pline v nevarnih količinah","*",1080]
["10 08 11","Posnemki, ki niso navedeni v 10 08 10",null,1808]
["10 08 12","Odpadki iz proizvodnje anod, ki vsebujejo katran","*",1081]
["10 08 13","Odpadki iz proizvodnje anod, ki vsebujejo ogljik in niso navedeni v 10 08 12",null,1809]
["10 08 14","Ostanki izrabljenih anod",null,1810]
["10 08 15","Prah dimnih plinov, ki vsebuje nevarne snovi","*",1082]
["10 08 16","Prah dimnih plinov, ki ni naveden v 10 08 15",null,1811]
["10 08 17","Mulji in filtrne pogače iz čiščenja dimnih plinov, ki vsebujejo nevarne snovi","*",1083]
["10 08 18","Mulji in filtrne pogače iz čiščenja dimnih plinov, ki niso navedeni v 10 08 17",null,1812]
["10 08 19","Odpadki iz obdelave hladilne vode, ki vsebujejo olje","*",1084]
["10 08 20","Odpadki iz obdelave hladilne vode, ki niso navedeni v 10 08 19",null,1813]
["10 08 99","Odpadki, ki niso navedeni drugje",null,1814]
["10 09 03","Žlindra iz peči",null,1815]
["10 09 05","Neuporabljene livarske forme in jedra, ki vsebujejo nevarne snovi","*",1085]
["10 09 06","Neuporabljene livarske forme in jedra, ki niso navedeni v 10 09 05",null,1816]
["10 09 07","Uporabljene livarske forme in jedra, ki vsebujejo nevarne snovi","*",1086]
["10 09 08","Uporabljene livarske forme in jedra, ki niso navedeni v 10 09 07",null,1817]
["10 09 09","Prah dimnih plinov, ki vsebuje nevarne snovi","*",1087]
["10 09 10","Prah dimnih plinov, ki ni naveden v 10 09 09",null,1818]
["10 09 11","Drugi delci, ki vsebujejo nevarne snovi","*",1088]
["10 09 12","Drugi delci, ki niso navedeni v 10 09 11",null,1819]
["10 09 13","Odpadna veziva, ki vsebujejo nevarne snovi","*",1089]
["10 09 14","Odpadna veziva, ki niso navedena v 10 09 13",null,1820]
["10 09 15","Odpadna sredstva za ugotavljanje razpok, ki vsebujejo nevarne snovi","*",1090]
["10 09 16","Odpadna sredstva za ugotavljanje razpok, ki niso navedena v 10 09 15",null,1821]
["10 09 99","Odpadki, ki niso navedeni drugje",null,1822]
["10 10 03","Žlindra iz peči",null,1823]
["10 10 05","Neuporabljene livarske forme in jedra, ki vsebujejo nevarne snovi","*",1091]
["10 10 06","Neuporabljene livarske forme in jedra, ki niso navedeni v 10 10 05",null,1824]
["10 10 07","Uporabljene livarske forme in jedra, ki vsebujejo nevarne snovi","*",1092]
["10 10 08","Uporabljene livarske forme in jedra, ki niso navedeni v 10 10 07",null,1825]
["10 10 09","Prah dimnih plinov, ki vsebuje nevarne snovi","*",1093]
["10 10 10","Prah dimnih plinov, ki ni naveden v 10 10 09",null,1826]
["10 10 11","Drugi delci, ki vsebujejo nevarne snovi","*",1094]
["10 10 12","Drugi delci, ki niso navedeni v 10 10 11",null,1827]
["10 10 13","Odpadna veziva, ki vsebujejo nevarne snovi","*",1095]
["10 10 14","Odpadna veziva, ki niso navedena v 10 10 13",null,1828]
["10 10 15","Odpadna sredstva za ugotavljanje razpok, ki vsebujejo nevarne snovi","*",1096]
["10 10 16","Odpadna sredstva za ugotavljanje razpok, ki niso navedena v 10 10 15",null,1379]
["10 10 99","Odpadki, ki niso navedeni drugje",null,1380]
["10 11 03","Odpadni materiali iz steklenih vlaken",null,1381]
["10 11 05","Delci in prah",null,1382]
["10 11 09","Odpadna zmes pred taljenjem, ki vsebuje nevarne snovi","*",1097]
["10 11 10","Odpadna zmes pred taljenjem, ki ni navedena v 10 11 09",null,1383]
["10 11 11","Odpadno steklo, ki vsebuje težke kovine, v obliki majhnih delcev in prahu (npr. steklo katodnih cevi)","*",1098]
["10 11 12","Odpadno steklo, ki ni navedeno v 10 11 11",null,1384]
["10 11 13","Mulj iz poliranja in brušenja stekla, ki vsebuje nevarne snovi","*",1099]
["10 11 14","Mulj iz poliranja in brušenja stekla, ki ni naveden v 10 11 13",null,1385]
["10 11 15","Trdni odpadki iz čiščenja dimnih plinov, ki vsebujejo nevarne snovi","*",1100]
["10 11 16","Trdni odpadki iz čiščenja dimnih plinov, ki niso navedeni v 10 11 15",null,1386]
["10 11 17","Mulji in filtrne pogače iz čiščenja dimnih plinov, ki vsebujejo nevarne snovi","*",1101]
["10 11 18","Mulji in filtrne pogače iz čiščenja dimnih plinov, ki niso navedeni v 10 11 17",null,1387]
["10 11 19","Trdni odpadki, ki vsebujejo nevarne snovi, iz čiščenja odpadnih voda na kraju nastanka","*",1102]
["10 11 20","Trdni iz čiščenja odpadnih voda na kraju nastanka, ki niso navedeni v 10 11 19",null,1388]
["10 11 99","Odpadki, ki niso navedeni drugje",null,1389]
["10 12 01","Odpadna surova zmes pred žganjem",null,1390]
["10 12 03","Delci in prah",null,1391]
["10 12 05","Mulji in filtrne pogače iz čiščenja odpadnih plinov",null,1392]
["10 12 06","Zavržene forme",null,1393]
["10 12 08","Odpadna keramika, opeke, ploščice in gradbeni proizvodi (po žganju)",null,1394]
["10 12 09","Trdni odpadki iz čiščenja odpadnih plinov, ki vsebujejo nevarne snovi","*",1103]
["10 12 10","Trdni odpadki iz čiščenja odpadnih plinov, ki niso navedeni v 10 12 09",null,1395]
["10 12 11","Odpadki iz glaziranja, ki vsebujejo težke kovine","*",1241]
["10 12 12","Odpadki iz glaziranja, ki niso navedeni v 10 12 11",null,1396]
["10 12 13","Blato iz čiščenja odpadnih voda na kraju nastanka",null,1397]
["10 12 99","Odpadki, ki niso navedeni drugje",null,1398]
["10 13 01","Odpadna surova zmes pred žganjem",null,1399]
["10 13 04","Odpadki iz kalcinacije in hidratacije apna",null,1400]
["10 13 06","Delci in prah (razen 10 13 12 in 10 13 13)",null,1401]
["10 13 07","Mulji in filtrne pogače iz čiščenja odpadnih plinov",null,1402]
["10 13 09","Odpadki, ki vsebujejo azbest, iz proizvodnje azbestcementa","*",1242]
["10 13 10","Odpadki iz proizvodnje azbestcementa, ki niso navedeni v 10 13 09",null,1403]
["10 13 11","Odpadki iz proizvodnje sestavljenih (kompozitnih) materialov na osnovi cementa, ki niso navedeni v 10 13 09 in 10 13 10",null,1404]
["10 13 12","Trdni odpadki iz čiščenja odpadnih plinov, ki vsebujejo nevarne snovi","*",1243]
["10 13 13","Trdni odpadki iz čiščenja odpadnih plinov, ki niso navedeni v 10 13 12",null,1405]
["10 13 14","Odpadni beton in betonski mulj",null,1406]
["10 13 99","Odpadki, ki niso navedeni drugje",null,1407]
["10 14 01","Odpadki, ki vsebujejo živo srebro, iz čiščenja odpadnih plinov","*",1111]
["11 01 05","Kisline za luženja","*",1112]
["11 01 06","Kisline, ki niso navedene drugje","*",1113]
["11 01 07","Baze (lugi) za luženje","*",1114]
["11 01 08","Mulji iz fosfatiranja","*",1115]
["11 01 09","Mulji in filtrne pogače, ki vsebujejo nevarne snovi","*",1116]
["11 01 10","Mulji in filtrne pogače, ki niso navedeni v 11 01 09",null,1364]
["11 01 11","Tekočine za izpiranje na vodni osnovi, ki vsebujejo nevarne snovi","*",1596]
["11 01 12","Tekočine za izpiranje na vodni osnovi, ki niso navedene v 11 01 11",null,1365]
["11 01 13","Odpadki iz razmaščevanja, ki vsebujejo nevarne snovi","*",1597]
["11 01 14","Odpadki iz razmaščevanja, ki niso navedeni v 11 01 13",null,1366]
["11 01 15","Eluati in mulji, ki vsebujejo nevarne snovi, iz membranskih sistemov ali ionskih izmenjevalnikov","*",1598]
["11 01 16","Nasičene ali izrabljene smole ionskih izmenjevalnikov","*",1599]
["11 01 98","Drugi odpadki, ki vsebujejo nevarne snovi","*",1600]
["11 01 99","Odpadki, ki niso navedeni drugje",null,1367]
["11 02 02","Mulji iz hidrometalurgije cinka (vključno z jarositom in goethitom)","*",1601]
["11 02 03","Odpadki iz proizvodnje anod za elektrolizne postopke v vodnih medijih",null,1368]
["11 02 05","Odpadki iz hidrometalurških postopkov bakra, ki vsebujejo nevarne snovi","*",1602]
["11 02 06","Odpadki iz hidrometalurških postopkov, ki niso navedeni v 11 02 05",null,1369]
["11 02 07","Drugi odpadki, ki vsebujejo nevarne snovi","*",1603]
["11 02 99","Odpadki, ki niso navedeni drugje",null,1370]
["11 03 01","Odpadki, ki vsebujejo cianid","*",1604]
["11 03 02","Drugi odpadki","*",1605]
["11 05 01","Surovi cink",null,1371]
["11 05 02","Cinkov pepel",null,1372]
["11 05 03","Trdni odpadki iz čiščenja odpadnih plinov","*",1606]
["11 05 04","Izrabljena kopel","*",1607]
["11 05 99","Odpadki, ki niso navedeni drugje",null,1373]
["12 01 01","Opilki in ostružki železa",null,1374]
["12 01 02","Prah in delci železa",null,1375]
["12 01 03","Opilki in ostružki barvnih kovin",null,1376]
["12 01 04","Prah in delci barvnih kovin",null,1377]
["12 01 05","Drobci in ostružki plastike",null,1378]
["12 01 06","Mineralna strojna olja, ki vsebujejo halogene (razen emulzij in raztopin)","*",1608]
["12 01 07","Mineralna strojna olja, ki ne vsebujejo halogenov (razen emulzij in raztopin)","*",1609]
["12 01 08","Strojne emulzije in raztopine, ki vsebujejo halogene","*",1610]
["12 01 09","Strojne emulzije in raztopine, ki ne vsebujejo halogenov","*",1611]
["12 01 10","Sintetična strojna olja","*",1612]
["12 01 12","Izrabljeni voski in masti","*",1613]
["12 01 13","Odpadki iz varjenja",null,1170]
["12 01 14","Strojni mulji, ki vsebujejo nevarne snovi","*",1614]
["12 01 15","Strojni mulji, ki niso navedeni v 12 01 14",null,1171]
["12 01 16","Odpadki iz peskanja, ki vsebujejo nevarne snovi","*",1615]
["12 01 17","Odpadki iz peskanja, ki niso navedeni v 12 01 16",null,1172]
["12 01 18","Kovinski mulj (mulj iz brušenja, honanja in lepanja), ki vsebuje olje","*",1616]
["12 01 19","Lahko biorazgradljiva strojna olja","*",1617]
["12 01 20","Izrabljena brusilna telesa in brusilni materiali, ki vsebujejo nevarne snovi","*",1618]
["12 01 21","Izrabljena brusilna telesa in brusilni materiali, ki niso navedeni v 12 01 20",null,1173]
["12 01 99","Odpadki, ki niso navedeni drugje",null,1174]
["12 03 01","Pralne tekočine na vodni osnovi","*",1619]
["12 03 02","Odpadki iz razmaščevanja s paro","*",1620]
["13 01 01","Hidravlična olja, ki vsebujejo PCB","*",1621]
["13 01 04","Klorirane emulzije","*",1622]
["13 01 05","Neklorirane emulzije","*",1623]
["13 01 09","Mineralna klorirana hidravlična olja","*",1624]
["13 01 10","Mineralna neklorirana hidravlična olja","*",1625]
["13 01 11","Sintetična hidravlična olja","*",1626]
["13 01 12","Lahko biorazgradljiva hidravlična olja","*",1627]
["13 01 13","Druga hidravlična olja","*",1628]
["13 02 04","Mineralna klorirana motorna olja, olja prestavnih mehanizmov in mazalna olja","*",1629]
["13 02 05","Mineralna neklorirana motorna olja, olja prestavnih mehanizmov in mazalna olja","*",1630]
["13 02 06","Sintetična motorna olja, olja prestavnih mehanizmov in mazalna olja","*",1631]
["13 02 07","Lahko biorazgradljiva motorna olja, olja prestavnih mehanizmov in mazalna olja","*",1632]
["13 02 08","Druga motorna olja, olja prestavnih mehanizmov in mazalna olja","*",1633]
["13 03 01","Izolirna olja in olja za prenos toplote, ki vsebujejo PCB","*",1634]
["13 03 06","Mineralna klorirana izolirna olja in olja prenos toplote, ki niso navedena v 13 03 01","*",1635]
["13 03 07","Mineralna neklorirana izolirna olja in olja za prenos toplote","*",1636]
["13 03 08","Sintetična izolirna olja in olja za prenos toplote","*",1637]
["13 03 09","Lahko biorazgradljiva izolirna olja in olja za prenos toplote","*",1638]
["13 03 10","Druga izolirna olja in olja za prenos toplote","*",1639]
["13 04 01","Kalužna (ladijska) olja iz plovbe po celinskih plovnih poteh","*",1640]
["13 04 02","Kalužna (ladijska) olja iz odtočnih kanalov na pomolih","*",1641]
["13 04 03","Kalužna (ladijska) olja iz druge plovbe","*",1642]
["13 05 01","Trdne snovi iz peskolovov in naprav za ločevanje olja in vode","*",1643]
["13 05 02","Mulji iz naprav za ločevanje olja in vode","*",1644]
["13 05 03","Mulji iz lovilcev olj","*",1645]
["13 05 06","Olja iz naprav za ločevanje olja in vode","*",1646]
["13 05 07","Z oljem onesnažena voda iz naprav za ločevanje olja in vode","*",1647]
["13 05 08","Mešanice odpadkov iz peskolovov in naprav za ločevanje olja in vode","*",1648]
["13 07 01","Kurilno olje in dizelsko gorivo","*",1649]
["13 07 02","Bencin","*",1650]
["13 07 03","Druga goriva (vključno z mešanicami)","*",1651]
["13 08 01","Mulji ali emulzije iz razsoljevanja","*",1652]
["13 08 02","Druge emulzije","*",1653]
["13 08 99","Odpadki, ki niso navedeni drugje","*",1654]
["14 06 01","Fluorokloroogljikovodiki, HCFC, HFC","*",1655]
["14 06 02","Druga halogenirana topila in mešanice topil","*",1656]
["14 06 03","Druga topila in mešanice topil","*",1657]
["14 06 04","Mulji ali trdni odpadki, ki vsebujejo halogenirana topila","*",1658]
["14 06 05","Mulji ali trdni odpadki, ki vsebujejo druga topila","*",1659]
["15 01 01","Papirna in kartonska embalaža ter embalaža iz lepenke",null,1175]
["15 01 02","Plastična embalaža",null,1176]
["15 01 03","Lesena embalaža",null,1177]
["15 01 04","Kovinska embalaža",null,1178]
["15 01 05","Sestavljena (kompozitna) embalaža",null,1179]
["15 01 06","Mešana embalaža",null,1180]
["15 01 07","Steklena embalaža",null,1181]
["15 01 09","Embalaža iz tekstila",null,1732]
["15 01 10","Embalaža, ki vsebuje ostanke nevarnih snovi ali je onesnažena z nevarnimi snovmi","*",1660]
["15 01 11","Kovinska embalaža, ki vsebuje nevaren trden porozen oklep (npr. azbest), vključno s praznimi tlačnimi posodami","*",1661]
["15 02 02","Absorbenti, filtrirna sredstva (vključno z oljnimi filtri, ki niso navedeni drugje), čistilne krpe in zaščitna oblačila, ki so onesnaženi z nevarnimi snovmi","*",1662]
["15 02 03","Absorbenti, filtrirna sredstva, čistilne krpe in zaščitna oblačila, ki niso navedeni v 15 02 02",null,1733]
["16 01 03","Izrabljene gume",null,1532]
["16 01 04","Izrabljena vozila","*",1132]
["16 01 06","Izrabljena vozila, ki ne vsebujejo niti tekočin niti drugih nevarnih sestavin",null,1533]
["16 01 07","Oljni filtri","*",1133]
["16 01 08","Sestavine, ki vsebujejo živo srebro","*",1134]
["16 01 09","Sestavine, ki vsebujejo PCB","*",1135]
["16 01 10","Eksplozivne sestavine (npr. zračne blazine)","*",1136]
["16 01 11","Zavorne obloge, ki vsebujejo azbest","*",1137]
["16 01 12","Zavorne obloge, ki niso navedene v 16 01 11",null,1534]
["16 01 13","Zavorne tekočine","*",1138]
["16 01 14","Tekočine proti zmrzovanju, ki vsebujejo nevarne snovi","*",1139]
["16 01 15","Tekočine proti zmrzovanju, ki niso navedene v 16 01 14",null,1535]
["16 01 16","Rezervoarji za utekočinjen plin",null,1536]
["16 01 17","Železne kovine",null,1537]
["16 01 18","Barvne kovine",null,1538]
["16 01 19","Plastika",null,1539]
["16 01 20","Steklo",null,1540]
["16 01 21","Nevarne sestavine, ki niso navedene v 16 01 07 do 16 01 11 ter 16 01 13 in 16 01 14","*",1140]
["16 01 22","Sestavine, ki niso navedene drugje",null,1541]
["16 01 99","Odpadki, ki niso navedeni drugje",null,1542]
["16 02 09","Transformatorji in kondenzatorji, ki vsebujejo PCB","*",1141]
["16 02 10","Zavržena oprema, ki vsebuje PCB ali je onesnažena z njimi in ni navedena v 16 02 09","*",1142]
["16 02 11","Zavržena oprema, ki vsebuje fluorokloroogljikovodike, HCFC, HFC","*",1143]
["16 02 12","Zavržena oprema, ki vsebuje prosti azbest","*",1144]
["16 02 13","Zavržena oprema, ki vsebuje nevarne sestavine (3), in ni navedena v 16 02 09 do 16 02 12","*",1145]
["16 02 14","Zavržena oprema, ki ni navedena v 16 02 09 do 16 02 13",null,1543]
["16 02 15","Nevarne sestavine, odstranjene iz zavržene opreme","*",1146]
["16 02 16","Sestavine, odstranjene iz zavržene opreme, ki niso navedene v 16 02 15",null,1544]
["16 03 03","Anorganski odpadki, ki vsebujejo nevarne snovi","*",1147]
["16 03 04","Anorganski odpadki, ki niso navedeni v 16 03 03",null,1545]
["16 03 05","Organski odpadki, ki vsebujejo nevarne snovi","*",1148]
["16 03 06","Organski odpadki, ki niso navedeni v 16 03 05",null,1546]
["16 03 07","Kovinsko živo srebro","*",1952]
["16 04 01","Odpadno strelivo","*",1149]
["16 04 02","Odpadni pirotehnični izdelki","*",1150]
["16 04 03","Drugi odpadni eksplozivi","*",1151]
["16 05 04","Plini v tlačnih posodah (vključno s haloni), ki vsebujejo nevarne snovi","*",1152]
["16 05 05","Plini v tlačnih posodah, ki niso navedeni v 16 05 04",null,1547]
["16 05 06","Laboratorijske kemikalije, ki sestojijo iz nevarnih snovi ali jih vsebujejo, vključno z mešanicami laboratorijskih kemikalij","*",1153]
["16 05 07","Zavržene anorganske kemikalije, ki sestojijo iz nevarnih snovi ali jih vsebujejo","*",1154]
["16 05 08","Zavržene organske kemikalije, ki sestojijo iz nevarnih snovi ali jih vsebujejo","*",1155]
["16 05 09","Zavržene kemikalije, ki niso navedene v 16 05 06, 16 05 07 ali 16 05 08",null,1548]
["16 06 01","Svinčeve baterije","*",1156]
["16 06 02","Nikelj-kadmijeve baterije","*",1157]
["16 06 03","Baterije, ki vsebujejo živo srebro","*",1158]
["16 06 04","Alkalne baterije (razen 16 06 03)",null,1549]
["16 06 05","Druge baterije in akumulatorji",null,1550]
["16 06 06","Ločeno zbrani elektroliti iz baterij in akumulatorjev","*",1159]
["16 07 08","Odpadki, ki vsebujejo olje","*",1160]
["16 07 09","Odpadki, ki vsebujejo druge nevarne snovi","*",1161]
["16 07 99","Odpadki, ki niso navedeni drugje",null,1551]
["16 08 01","Izrabljeni katalizatorji, ki vsebujejo zlato, srebro, renij, rodij, paladij, iridij ali platino (razen 16 08 07)",null,1552]
["16 08 02","Izrabljeni katalizatorji, ki vsebujejo nevarne prehodne kovine ali njihove spojine","*",1162]
["16 08 03","Izrabljeni katalizatorji, ki vsebujejo prehodne kovine ali njihove spojine, ki niso navedeni drugje",null,1553]
["16 08 04","Izrabljeni tekoči katalizatorji iz katalitičnega krekinga (razen 16 08 07)",null,1554]
["16 08 05","Izrabljeni katalizatorji, ki vsebujejo fosforjevo kislino","*",1163]
["16 08 06","Izrabljene tekočine, uporabljene kot katalizatorji","*",1164]
["16 08 07","Izrabljeni katalizatorji, onesnaženi z nevarnimi snovmi","*",1165]
["16 09 01","Permanganati, npr. kalijev permanganat","*",1166]
["16 09 02","Kromati, npr. kalijev kromat, kalijev ali natrijev dikromat","*",1167]
["16 09 03","Peroksidi, npr. vodikov peroksid","*",1168]
["16 09 04","Oksidanti, ki niso navedeni drugje","*",1169]
["16 10 01","Odpadne vodne raztopine, ki vsebujejo nevarne snovi","*",1104]
["16 10 02","Odpadne vodne raztopine, ki niso navedene v 16 10 01",null,1555]
["16 10 03","Vodni koncentrati, ki vsebujejo nevarne snovi","*",1105]
["16 10 04","Vodni koncentrati, ki niso navedeni v 16 10 03",null,1556]
["16 11 01","Obloge in ognjevzdržni materiali na osnovi ogljika, ki vsebujejo nevarne snovi, iz metalurških postopkov","*",1106]
["16 11 02","Obloge in ognjevzdržni materiali na osnovi ogljika iz metalurških postopkov, ki niso navedeni v 16 11 01",null,1557]
["16 11 03","Druge obloge in ognjevzdržni materiali, ki vsebujejo nevarne snovi, iz metalurških postopkov","*",1107]
["16 11 04","Druge obloge in ognjevzdržni materiali iz metalurških postopkov, ki niso navedeni v 16 11 03",null,1558]
["16 11 05","Obloge in ognjevzdržni materiali, ki vsebujejo nevarne snovi, iz nemetalurških postopkov","*",1108]
["16 11 06","Obloge in ognjevzdržni materiali iz nemetalurških postopkov, ki niso navedeni v 16 11 05",null,1559]
["17 01 01","Beton",null,1560]
["17 01 02","Opeke",null,1561]
["17 01 03","Ploščice in keramika",null,1562]
["17 01 06","Mešanice ali ločene frakcije betona, opeke, ploščic in keramike, ki vsebujejo nevarne snovi","*",1109]
["17 01 07","Mešanice betona, opeke, ploščic in keramike, ki niso navedene v 17 01 06",null,1563]
["17 02 01","Les",null,1564]
["17 02 02","Steklo",null,1565]
["17 02 03","Plastika",null,1566]
["17 02 04","Steklo, plastika in les, ki vsebujejo nevarne snovi, ali so z njimi onesnaženi","*",1110]
["17 03 01","Bitumenske mešanice, ki vsebujejo premogov katran","*",1246]
["17 03 02","Bitumenske mešanice, ki niso navedene v 17 03 01",null,1567]
["17 03 03","Premogov katran in proizvodi, ki vsebujejo katran","*",1247]
["17 04 01","Baker, bron, medenina",null,1568]
["17 04 02","Aluminij",null,1569]
["17 04 03","Svinec",null,1570]
["17 04 04","Cink",null,1571]
["17 04 05","Železo in jeklo",null,1572]
["17 04 06","Kositer",null,1573]
["17 04 07","Mešanice kovin",null,1574]
["17 04 09","Kovinski odpadki, onesnaženi z nevarnimi snovmi","*",1248]
["17 04 10","Kabli, ki vsebujejo olje, premogov katran in druge nevarne snovi","*",1249]
["17 04 11","Kabli, ki niso navedeni v 17 04 10",null,1575]
["17 05 03","Zemlja in kamenje, ki vsebujeta nevarne snovi","*",1250]
["17 05 04","Zemlja in kamenje, ki nista navedena v 17 05 03",null,1576]
["17 05 05","Material, izkopan pri poglabljanju dna z bagranjem, ki vsebuje nevarne snovi","*",1251]
["17 05 06","Material, izkopan pri poglabljanju dna z bagranjem, ki ni naveden v 17 05 05",null,1577]
["17 05 07","Tolčenec izpod železniških tirov in pragov, ki vsebuje nevarne snovi","*",1252]
["17 05 08","Tolčenec izpod železniških tirov in pragov, ki ni naveden v 17 05 07",null,1578]
["17 06 01","Izolirni materiali, ki vsebujejo azbest","*",1253]
["17 06 03","Drugi izolirni materiali, ki sestojijo iz nevarnih snovi ali jih vsebujejo","*",1254]
["17 06 04","Izolirni materiali, ki niso navedeni v 17 06 01 in 17 06 03",null,1579]
["17 06 05","Gradbeni materiali, ki vsebujejo azbest","*",1255]
["17 08 01","Gradbeni materiali na osnovi sadre, ki so onesnaženi z nevarnimi snovmi","*",1256]
["17 08 02","Gradbeni materiali na osnovi sadre, ki niso navedeni v 17 08 01",null,1580]
["17 09 01","Gradbeni odpadki in odpadki iz rušenja objektov, ki vsebujejo živo srebro","*",1257]
["17 09 02","Gradbeni odpadki in odpadki iz rušenja objektov, ki vsebujejo PCB (npr. tesnilne mase, ki vsebujejo PCB, talne obloge na osnovi smol, ki vsebujejo PCB, zasteklitve z izolirnimi stekli, ki vsebujejo PCB, in kondenzatorji, ki vsebujejo PCB)","*",1258]
["17 09 03","Drugi gradbeni odpadki in odpadki iz rušenja objektov (vključno z mešanicami odpadkov), ki vsebujejo nevarne snovi","*",1259]
["17 09 04","Mešanice gradbeni odpadkov in odpadkov iz rušenja objektov, ki niso navedene v 17 09 01, 17 09 02 in 17 09 03",null,1581]
["18 01 01","Ostri predmeti (razen 18 01 03)",null,1582]
["18 01 02","Deli telesa in organi, vključno z vrečkami krvi in konzervirano krvjo (razen 18 01 03)",null,1583]
["18 01 03","Odpadki, ki z vidika preprečevanja okužbe zahtevajo posebno ravnanje pri zbiranju in odstranjevanju","*",1260]
["18 01 04","Odpadki, ki z vidika preprečevanja okužbe ne zahtevajo posebnega ravnanja pri zbiranju in odstranjevanju (npr. obveze, mavčni povoji, oblačila za enkratno uporabo, plenice)",null,1584]
["18 01 06","Kemikalije, ki sestojijo iz nevarnih snovi ali jih vsebujejo","*",1261]
["18 01 07","Kemikalije, ki niso navedene v 18 01 06",null,1585]
["18 01 08","Citotoksična in citostatična zdravila","*",1262]
["18 01 09","Zdravila, ki niso navedena v 18 01 08",null,1433]
["18 01 10","Amalgamski odpadki iz zobozdravstva","*",1263]
["18 02 01","Ostri predmeti (razen 18 02 02)",null,1434]
["18 02 02","Odpadki, ki z vidika preprečevanja okužb zahtevajo posebno ravnanje pri zbiranju in odstranjevanju","*",1264]
["18 02 03","Odpadki, ki z vidika preprečevanja okužb ne zahtevajo posebnega ravnanja pri zbiranju in odstranjevanju",null,1435]
["18 02 05","Kemikalije, ki sestojijo iz nevarnih snovi ali jih vsebujejo","*",1265]
["18 02 06","Kemikalije, ki niso navedene v 18 02 05",null,1436]
["18 02 07","Citotoksična in citostatična zdravila","*",1266]
["18 02 08","Zdravila, ki niso navedena v 18 02 07",null,1437]
["19 01 02","Železni materiali, izločeni iz ogorkov",null,1438]
["19 01 05","Filtrne pogače iz čiščenja odpadnih plinov","*",1267]
["19 01 06","Odpadne vodne raztopine iz čiščenja odpadnih plinov in druge odpadne vodne raztopine","*",1268]
["19 01 07","Trdni odpadki iz čiščenja odpadnih plinov","*",1269]
["19 01 10","Izrabljeno aktivno oglje iz čiščenja dimnih plinov","*",1270]
["19 01 11","Ogorki in žlindra, ki vsebujejo nevarne snovi","*",1271]
["19 01 12","Ogorki in žlindra, ki niso navedeni v 19 01 11",null,1439]
["19 01 13","Elektrofiltrski pepel, ki vsebuje nevarne snovi","*",1272]
["19 01 14","Elektrofiltrski pepel, ki ni naveden v 19 01 13",null,1440]
["19 01 15","Kotlovski prah, ki vsebuje nevarne snovi","*",1273]
["19 01 16","Kotlovski prah, ki ni naveden v 19 01 15",null,1441]
["19 01 17","Odpadki, ki vsebujejo nevarne snovi, iz pirolize","*",1274]
["19 01 18","Odpadki iz pirolize, ki niso navedeni v 19 01 17",null,1442]
["19 01 19","Peski iz kurišč na lebdečo plast",null,1443]
["19 01 99","Odpadki, ki niso navedeni drugje",null,1444]
["19 02 03","Pomešani odpadki, ki sestojijo samo iz nenevarnih odpadkov",null,1445]
["19 02 04","Pomešani odpadki, ki vsebujejo vsaj en nevarni odpadek","*",1275]
["19 02 05","Mulji, ki vsebujejo nevarne snovi, iz fizikalno-kemične obdelave","*",1276]
["19 02 06","Mulji iz fizikalno-kemične obdelave, ki niso navedeni v 19 02 05",null,1446]
["19 02 07","Olja in koncentrati iz postopkov ločevanja","*",1277]
["19 02 08","Tekoči gorljivi odpadki, ki vsebujejo nevarne snovi","*",1278]
["19 02 09","Trdni gorljivi odpadki, ki vsebujejo nevarne snovi","*",1279]
["19 02 10","Gorljivi odpadki, ki niso navedeni v 19 02 08 in 19 02 09",null,1447]
["19 02 11","Drugi odpadki, ki vsebujejo nevarne snovi","*",1280]
["19 02 99","Odpadki, ki niso navedeni drugje",null,1448]
["19 03 04","Odpadki, označeni kot nevarni, delno stabilizirani, razen 19 03 08","*",1281]
["19 03 05","Stabilizirani odpadki, ki niso navedeni v 19 03 04",null,1449]
["19 03 06","Odpadki, označeni kot nevarni, solidificirani","*",1282]
["19 03 07","Solidificirani odpadki, ki niso navedeni v 19 03 06",null,1450]
["19 03 08","Delno stabilizirano živo srebro","*",1971]
["19 04 01","Zastekljeni odpadki",null,1451]
["19 04 02","Elektrofiltrski pepel in drugi odpadki iz čiščenja dimnih plinov","*",1283]
["19 04 03","Nezastekljena trdna faza","*",1284]
["19 04 04","Odpadne vodne raztopine iz tempranja zastekljenih odpadkov",null,1452]
["19 05 01","Nekompostirana frakcija komunalnih in podobnih odpadkov",null,1453]
["19 05 02","Nekompostirana frakcija živalskih in rastlinskih odpadkov",null,1454]
["19 05 03","Kompost, ki ne ustreza specifikaciji",null,1455]
["19 05 99","Odpadki, ki niso navedeni drugje",null,1456]
["19 06 03","Lužnica iz anaerobne obdelave komunalnih odpadkov",null,1457]
["19 06 04","Digestat iz anaerobne obdelave komunalnih odpadkov",null,1458]
["19 06 05","Lužnica iz anaerobne obdelave živalskih in rastlinskih odpadkov",null,1459]
["19 06 06","Digestat iz anaerobne obdelave živalskih in rastlinskih odpadkov",null,1460]
["19 06 99","Odpadki, ki niso navedeni drugje",null,1461]
["19 07 02","Izcedne vode, ki vsebujejo nevarne snovi, z odlagališč","*",1285]
["19 07 03","Izcedne vode z odlagališč, ki niso navedene v 19 07 02",null,1462]
["19 08 01","Ostanki na grabljah in sitih",null,1463]
["19 08 02","Odpadki iz peskolovov",null,1464]
["19 08 05","Blato iz čiščenja komunalnih odpadnih voda",null,1465]
["19 08 06","Nasičene ali izrabljene smole ionskih izmenjevalnikov","*",1286]
["19 08 07","Raztopine in mulji iz regeneracije ionskih izmenjevalnikov","*",1287]
["19 08 08","Odpadki, ki vsebujejo težke kovine, iz membranskih sistemov","*",1288]
["19 08 09","Mešanice masti in olj iz ločevanja olja in vode, ki vsebujejo le jedilna olja in masti",null,1466]
["19 08 10","Mešanice masti in olj iz ločevanja olja in vode, ki niso navedene v 19 08 09","*",1289]
["19 08 11","Blato iz biološke obdelave industrijskih odpadnih voda, ki vsebuje nevarne snovi","*",1290]
["19 08 12","Blato iz biološke obdelave industrijskih odpadnih voda, ki ni navedeno v 19 08 11",null,1467]
["19 08 13","Blato iz druge obdelave industrijskih odpadnih voda, ki vsebuje nevarne snovi","*",1291]
["19 08 14","Blato iz druge obdelave industrijskih odpadnih voda, ki ni navedeno v 19 08 13",null,1468]
["19 08 99","Odpadki, ki niso navedeni drugje",null,1469]
["19 09 01","Trdni odpadki iz primarnega filtriranja in ostanki na grabljah in sitih",null,1470]
["19 09 02","Mulji iz bistrenja vode",null,1471]
["19 09 03","Mulji iz dekarbonatizacije",null,1472]
["19 09 04","Izrabljeno aktivno oglje",null,1473]
["19 09 05","Nasičene ali izrabljene smole ionskih izmenjevalnikov",null,1474]
["19 09 06","Raztopine in mulji iz regeneracije ionskih izmenjevalnikov",null,1475]
["19 09 99","Odpadki, ki niso navedeni drugje",null,1476]
["19 10 01","Odpadno železo in jeklo",null,1477]
["19 10 02","Odpadne barvne kovine",null,1478]
["19 10 03","Lahka frakcija in prah, ki vsebujeta nevarne snovi","*",1292]
["19 10 04","Lahka frakcija in prah, ki nista navedena v 19 10 03",null,1479]
["19 10 05","Druge frakcije, ki vsebujejo nevarne snovi","*",1293]
["19 10 06","Druge frakcije, ki niso navedene v 19 10 05",null,1480]
["19 11 01","Izrabljene filtrirne zemlje","*",1294]
["19 11 02","Kisli katrani","*",1295]
["19 11 03","Odpadne vodne raztopine","*",1296]
["19 11 04","Odpadki iz čiščenja goriva z bazami (lugi)","*",1297]
["19 11 05","Blato, ki vsebuje nevarne snovi, iz čiščenja odpadnih voda na kraju nastanka","*",1298]
["19 11 06","Blato iz čiščenja odpadnih voda na kraju nastanka, ki ni navedeno v 19 11 05",null,1481]
["19 11 07","Odpadki iz čiščenja dimnih plinov","*",1299]
["19 11 99","Odpadki, ki niso navedeni drugje",null,1482]
["19 12 01","Papir ter karton in lepenka",null,1483]
["19 12 02","Železne kovine",null,1484]
["19 12 03","Barvne kovine",null,1485]
["19 12 04","Plastika in guma",null,1486]
["19 12 05","Steklo",null,1487]
["19 12 06","Les, ki vsebuje nevarne snovi","*",1300]
["19 12 07","Les, ki ni naveden v 19 12 06",null,1488]
["19 12 08","Tekstil",null,1489]
["19 12 09","Minerali (npr. pesek, kamenje)",null,1490]
["19 12 10","Gorljivi odpadki (iz odpadkov pridobljeno gorivo)",null,1829]
["19 12 11","Drugi odpadki (vključno z mešanicami materialov), ki vsebujejo nevarne snovi, iz mehanske obdelave odpadkov","*",1301]
["19 12 12","Drugi odpadki (vključno z mešanicami materialov) iz mehanske obdelave odpadkov, ki niso navedeni v 19 12 11",null,1830]
["19 13 01","Trdni odpadki, ki vsebujejo nevarne snovi, iz sanacije tal","*",1302]
["19 13 02","Trdni odpadki iz sanacije tal, ki niso navedeni v 19 13 01",null,1831]
["19 13 03","Mulji, ki vsebujejo nevarne snovi, iz sanacije tal","*",1303]
["19 13 04","Mulji iz sanacije tal, ki niso navedeni v 19 13 03",null,1832]
["19 13 05","Mulji, ki vsebujejo nevarne snovi, iz sanacije podtalnice","*",1304]
["19 13 06","Mulji iz sanacije podtalnice, ki niso navedeni v 19 13 05",null,1833]
["19 13 07","Odpadne vodne raztopine in vodni koncentrati, ki vsebujejo nevarne snovi, iz sanacije podtalnice","*",1305]
["19 13 08","Odpadne vodne raztopine in vodni koncentrati iz sanacije podtalnice, ki niso navedeni v 19 13 07",null,1834]
["20 01 01","Papir ter karton in lepenka",null,1835]
["20 01 02","Steklo",null,1836]
["20 01 08","Biorazgradljivi kuhinjski odpadki in odpadki iz restavracij",null,1837]
["20 01 10","Oblačila",null,1838]
["20 01 11","Tekstil",null,1839]
["20 01 13","Topila","*",1306]
["20 01 14","Kisline","*",1307]
["20 01 15","Alkalije","*",1308]
["20 01 17","Fotokemikalije","*",1309]
["20 01 19","Pesticidi","*",1586]
["20 01 21","Fluorescenčne cevi in drugi odpadki, ki vsebujejo živo srebro","*",1587]
["20 01 23","Zavržena oprema, ki vsebuje fluorokloroogljikovodike","*",1588]
["20 01 25","Jedilno olje in masti",null,1840]
["20 01 26","Olje in masti, ki niso navedeni v 20 01 25","*",1589]
["20 01 27","Barve, tiskarske barve, lepila in smole, ki vsebujejo nevarne snovi","*",1590]
["20 01 28","Barve, tiskarske barve, lepila in smole, ki niso navedeni v 20 01 27",null,1841]
["20 01 29","Čistila (detergenti), ki vsebujejo nevarne snovi","*",1591]
["20 01 30","Čistila (detergenti), ki niso navedeni v 20 01 29",null,1842]
["20 01 31","Citotoksična in citostatična zdravila","*",1592]
["20 01 32","Zdravila, ki niso navedena v 20 01 31",null,1843]
["20 01 33","Baterije in akumulatorji, navedeni v 16 06 01, 16 06 02 ali 16 06 03, in nesortirane baterije in akumulatorji, ki vsebujejo te baterije","*",1593]
["20 01 34","Baterije in akumulatorji, ki niso navedeni v 20 01 33",null,1844]
["20 01 35","Zavržena električna in elektronska oprema, ki vsebuje nevarne snovi (3), ki ni navedena v 20 01 21 in 20 01 23","*",1594]
["20 01 36","Zavržena električna in elektronska oprema, ki ni navedena v 20 01 21, 20 01 23 in 20 01 35",null,1845]
["20 01 37","Les, ki vsebuje nevarne snovi","*",1595]
["20 01 38","Les, ki ni naveden v 20 01 37",null,1846]
["20 01 39","Plastika",null,1847]
["20 01 40","Kovine",null,1848]
["20 01 41","Odpadki iz čiščenja dimnikov",null,1849]
["20 01 99","Odpadki, ki niso navedeni drugje",null,1850]
["20 02 01","Biorazgradljivi odpadki",null,1851]
["20 02 02","Zemlja in kamenje",null,1852]
["20 02 03","Drugi odpadki, ki niso biorazgradljivi",null,1853]
["20 03 01","Mešani komunalni odpadki",null,1854]
["20 03 02","Odpadki s tržnic",null,1855]
["20 03 03","Odpadki iz čiščenja cest",null,1856]
["20 03 04","Blato iz greznic",null,1857]
["20 03 06","Odpadki iz čiščenja kanalizacije",null,1858]
["20 03 07","Kosovni odpadki",null,1859]
["20 03 99","Komunalni odpadki, ki niso navedeni drugje",null,1860]

{"sheet":"sifrant_kom_odpadkov","index":15,"n_rows":52,"n_cols":4,"rows_kept":52,"cut":false,"hidden":true,"merged":[]}
["Številka odpadka ","Naziv odpadka ","Nevarnost odpadka","ID"]
["15 01 01","Papirna in kartonska embalaža ter embalaža iz lepenke",null,1175]
["15 01 02","Plastična embalaža",null,1176]
["15 01 03","Lesena embalaža",null,1177]
["15 01 04","Kovinska embalaža",null,1178]
["15 01 05","Sestavljena (kompozitna) embalaža",null,1179]
["15 01 06","Mešana embalaža",null,1180]
["15 01 07","Steklena embalaža",null,1181]
["15 01 09","Embalaža iz tekstila",null,1732]
["15 01 10","Embalaža, ki vsebuje ostanke nevarnih snovi ali je onesnažena z nevarnimi snovmi","*",1660]
["15 01 11","Kovinska embalaža, ki vsebuje nevaren trden porozen oklep (npr. azbest), vključno s praznimi tlačnimi posodami","*",1661]
["16 01 03","Izrabljene gume",null,1532]
["20 01 01","Papir ter karton in lepenka",null,1835]
["20 01 02","Steklo",null,1836]
["20 01 08","Biorazgradljivi kuhinjski odpadki in odpadki iz restavracij",null,1837]
["20 01 10","Oblačila",null,1838]
["20 01 11","Tekstil",null,1839]
["20 01 13","Topila","*",1306]
["20 01 14","Kisline","*",1307]
["20 01 15","Alkalije","*",1308]
["20 01 17","Fotokemikalije","*",1309]
["20 01 19","Pesticidi","*",1586]
["20 01 21","Fluorescenčne cevi in drugi odpadki, ki vsebujejo živo srebro","*",1587]
["20 01 23","Zavržena oprema, ki vsebuje fluorokloroogljikovodike","*",1588]
["20 01 25","Jedilno olje in masti",null,1840]
["20 01 26","Olje in masti, ki niso navedeni v 20 01 25","*",1589]
["20 01 27","Barve, tiskarske barve, lepila in smole, ki vsebujejo nevarne snovi","*",1590]
["20 01 28","Barve, tiskarske barve, lepila in smole, ki niso navedeni v 20 01 27",null,1841]
["20 01 29","Čistila (detergenti), ki vsebujejo nevarne snovi","*",1591]
["20 01 30","Čistila (detergenti), ki niso navedeni v 20 01 29",null,1842]
["20 01 31","Citotoksična in citostatična zdravila","*",1592]
["20 01 32","Zdravila, ki niso navedena v 20 01 31",null,1843]
["20 01 33","Baterije in akumulatorji, navedeni v 16 06 01, 16 06 02 ali 16 06 03, in nesortirane baterije in akumulatorji, ki vsebujejo te baterije","*",1593]
["20 01 34","Baterije in akumulatorji, ki niso navedeni v 20 01 33",null,1844]
["20 01 35","Zavržena električna in elektronska oprema, ki vsebuje nevarne snovi (3), ki ni navedena v 20 01 21 in 20 01 23","*",1594]
["20 01 36","Zavržena električna in elektronska oprema, ki ni navedena v 20 01 21, 20 01 23 in 20 01 35",null,1845]
["20 01 37","Les, ki vsebuje nevarne snovi","*",1595]
["20 01 38","Les, ki ni naveden v 20 01 37",null,1846]
["20 01 39","Plastika",null,1847]
["20 01 40","Kovine",null,1848]
["20 01 41","Odpadki iz čiščenja dimnikov",null,1849]
["20 01 99","Odpadki, ki niso navedeni drugje",null,1850]
["20 02 01","Biorazgradljivi odpadki",null,1851]
["20 02 02","Zemlja in kamenje",null,1852]
["20 02 03","Drugi odpadki, ki niso biorazgradljivi",null,1853]
["20 03 01","Mešani komunalni odpadki",null,1854]
["20 03 02","Odpadki s tržnic",null,1855]
["20 03 03","Odpadki iz čiščenja cest",null,1856]
["20 03 04","Blato iz greznic",null,1857]
["20 03 06","Odpadki iz čiščenja kanalizacije",null,1858]
["20 03 07","Kosovni odpadki",null,1859]
["20 03 99","Komunalni odpadki, ki niso navedeni drugje",null,1860]

{"sheet":"sifrant_obcine","index":16,"n_rows":212,"n_cols":2,"rows_kept":212,"cut":false,"hidden":true,"merged":[]}
["Naziv občine","OB_ID"]
["AJDOVŠČINA",1]
["ANKARAN",213]
["APAČE",195]
["BELTINCI",2]
["BENEDIKT",148]
["BISTRICA OB SOTLI",149]
["BLED",3]
["BLOKE",150]
["BOHINJ",4]
["BOROVNICA",5]
["BOVEC",6]
["BRASLOVČE",151]
["BRDA",7]
["BREZOVICA",8]
["BREŽICE",9]
["CANKOVA",152]
["CELJE",11]
["CERKLJE NA GORENJSKEM",12]
["CERKNICA",13]
["CERKNO",14]
["CERKVENJAK",153]
["CIRKULANE",196]
["ČRENŠOVCI",15]
["ČRNA NA KOROŠKEM",16]
["ČRNOMELJ",17]
["DESTRNIK",18]
["DIVAČA",19]
["DOBJE",154]
["DOBREPOLJE",20]
["DOBRNA",155]
["DOBROVA-POLHOV GRADEC",21]
["DOBROVNIK",156]
["DOL PRI LJUBLJANI",22]
["DOLENJSKE TOPLICE",157]
["DOMŽALE",23]
["DORNAVA",24]
["DRAVOGRAD",25]
["DUPLEK",26]
["GORENJA VAS-POLJANE",27]
["GORIŠNICA",28]
["GORJE",207]
["GORNJA RADGONA",29]
["GORNJI GRAD",30]
["GORNJI PETROVCI",31]
["GRAD",158]
["GROSUPLJE",32]
["HAJDINA",159]
["HOČE-SLIVNICA",160]
["HODOŠ",161]
["HORJUL",162]
["HRASTNIK",34]
["HRPELJE-KOZINA",35]
["IDRIJA",36]
["IG",37]
["ILIRSKA BISTRICA",38]
["IVANČNA GORICA",39]
["IZOLA",40]
["JESENICE",41]
["JEZERSKO",163]
["JURŠINCI",42]
["KAMNIK",43]
["KANAL",44]
["KIDRIČEVO",45]
["KOBARID",46]
["KOBILJE",47]
["KOČEVJE",48]
["KOMEN",49]
["KOMENDA",164]
["KOPER",50]
["KOSTANJEVICA NA KRKI",197]
["KOSTEL",165]
["KOZJE",51]
["KRANJ",52]
["KRANJSKA GORA",53]
["KRIŽEVCI",166]
["KRŠKO",54]
["KUNGOTA",55]
["KUZMA",56]
["LAŠKO",57]
["LENART",58]
["LENDAVA",59]
["LITIJA",60]
["LJUBLJANA",61]
["LJUBNO",62]
["LJUTOMER",63]
["LOGATEC",64]
["LOG-DRAGOMER",208]
["LOŠKA DOLINA",65]
["LOŠKI POTOK",66]
["LOVRENC NA POHORJU",167]
["LUČE",67]
["LUKOVICA",68]
["MAJŠPERK",69]
["MAKOLE",198]
["MARIBOR",70]
["MARKOVCI",168]
["MEDVODE",71]
["MENGEŠ",72]
["METLIKA",73]
["MEŽICA",74]
["MIKLAVŽ NA DRAVSKEM POLJU",169]
["MIREN-KOSTANJEVICA",75]
["MIRNA",212]
["MIRNA PEČ",170]
["MISLINJA",76]
["MOKRONOG-TREBELNO",199]
["MORAVČE",77]
["MORAVSKE TOPLICE",78]
["MOZIRJE",79]
["MURSKA SOBOTA",80]
["MUTA",81]
["NAKLO",82]
["NAZARJE",83]
["NOVA GORICA",84]
["NOVO MESTO",85]
["ODRANCI",86]
["OPLOTNICA",171]
["ORMOŽ",87]
["OSILNICA",88]
["PESNICA",89]
["PIRAN",90]
["PIVKA",91]
["PODČETRTEK",92]
["PODLEHNIK",172]
["PODVELKA",93]
["POLJČANE",200]
["POLZELA",173]
["POSTOJNA",94]
["PREBOLD",174]
["PREDDVOR",95]
["PREVALJE",175]
["PTUJ",96]
["PUCONCI",97]
["RAČE-FRAM",98]
["RADEČE",99]
["RADENCI",100]
["RADLJE OB DRAVI",101]
["RADOVLJICA",102]
["RAVNE NA KOROŠKEM",103]
["RAZKRIŽJE",176]
["REČICA OB SAVINJI",209]
["RENČE-VOGRSKO",201]
["RIBNICA",104]
["RIBNICA NA POHORJU",177]
["ROGAŠKA SLATINA",106]
["ROGAŠOVCI",105]
["ROGATEC",107]
["RUŠE",108]
["SELNICA OB DRAVI",178]
["SEMIČ",109]
["SEVNICA",110]
["SEŽANA",111]
["SLOVENJ GRADEC",112]
["SLOVENSKA BISTRICA",113]
["SLOVENSKE KONJICE",114]
["SODRAŽICA",179]
["SOLČAVA",180]
["SREDIŠČE OB DRAVI",202]
["STARŠE",115]
["STRAŽA",203]
["SV. TROJICA V SLOV. GORICAH",204]
["SVETA ANA",181]
["SVETI ANDRAŽ V SLOV. GORICAH",182]
["SVETI JURIJ OB ŠČAVNICI",116]
["SVETI JURIJ V SLOV. GORICAH",210]
["SVETI TOMAŽ",205]
["ŠALOVCI",33]
["ŠEMPETER-VRTOJBA",183]
["ŠENČUR",117]
["ŠENTILJ",118]
["ŠENTJERNEJ",119]
["ŠENTJUR",120]
["ŠENTRUPERT",211]
["ŠKOCJAN",121]
["ŠKOFJA LOKA",122]
["ŠKOFLJICA",123]
["ŠMARJE PRI JELŠAH",124]
["ŠMARJEŠKE TOPLICE",206]
["ŠMARTNO OB PAKI",125]
["ŠMARTNO PRI LITIJI",194]
["ŠOŠTANJ",126]
["ŠTORE",127]
["TABOR",184]
["TIŠINA",10]
["TOLMIN",128]
["TRBOVLJE",129]
["TREBNJE",130]
["TRNOVSKA VAS",185]
["TRZIN",186]
["TRŽIČ",131]
["TURNIŠČE",132]
["VELENJE",133]
["VELIKA POLANA",187]
["VELIKE LAŠČE",134]
["VERŽEJ",188]
["VIDEM",135]
["VIPAVA",136]
["VITANJE",137]
["VODICE",138]
["VOJNIK",139]
["VRANSKO",189]
["VRHNIKA",140]
["VUZENICA",141]
["ZAGORJE OB SAVI",142]
["ZAVRČ",143]
["ZREČE",144]
["ŽALEC",190]
["ŽELEZNIKI",146]
["ŽETALE",191]
["ŽIRI",147]
["ŽIROVNICA",192]

{"sheet":"sifrant_prilog","index":17,"n_rows":3,"n_cols":3,"rows_kept":3,"cut":false,"hidden":true,"merged":[]}
["ID","SPG_ID","Naziv                                                                                                                                                                                                                                                                                                                                                          "]
[192,89,"1. Načrt zbiranja odpadkov, izdelan v skladu z 32. čl. Uredbe o odpadkih in v skladu s predpisi, ki urejajo zbiranje posameznih vrst odpadkov"]
[191,70,"2. Dokazilo o tem, da je vlagatelj upravljavec posameznega zbirnega centra in dokazilo o posesti posameznega zbirnega centra, če vlagatelj ni njegov lastnik (dokazila morajo biti priložena za vsak posamezni zbirni center)"]

{"sheet":"sifrant_ostalo","index":18,"n_rows":12,"n_cols":2,"rows_kept":12,"cut":false,"hidden":true,"merged":[]}
["Registracija za izvajanje dejavnosti zbiranja in odvoza odpadkov (na zavihku prosilec)"]
["nenevarni odpadki (38.110)","nenevarni"]
["nevarni odpadki (38.120)","nevarni"]
["nenevarni in nevarni odpadki (38.110 in 38.120)","nenevarni in nevarni"]
[]
["Upravljavec zbirnega centra (izbrati eno od navedenih možnosti):"]
["vlagatelj je upravljavec","Upravjavec"]
["vlagatelj je lastnik in upravljavec","Lastnik in upravljavec"]
[]
["Izbor da/ne"]
["da"]
["ne"]

{"sheet":"prevent_share","index":19,"n_rows":2,"n_cols":3,"rows_kept":2,"cut":false,"hidden":true,"merged":[]}
["a","b","c"]
[1,2,3]